Cogmind - Beta 16 @@@ ROGUE MODE // 2025.12.05 @ 22:42:12 Player: the Result: Destroyed by Striker with Plasma Lance Performance ------------- Evolutions (8) 4000 Regions Visited (35) 7000 Robots Destroyed (410) 2050 Value Destroyed (15134) 15134 Prototype IDs (124) 2480 Alien Tech Used (2) 400 Bonus (9806) 9806 TOTAL SCORE: 40870 Bonus ------- High Alert Combat Kills 600 Follower Combat Kills 7815 Awakened Behemoth Slayer 1000 Network Hubs Disabled 200 Met Data Miner 300 Met Imprinter 300 Was Imprinted 300 MAIN.C Attacked Warlord 500 Warlord Defense Kills 1838 Built Enhanced Grunts 300 Met R17 at Cetus 500 Friendly Fire -3847 Cogmind --------- Core Integrity 0/1450 Matter 0/300 Energy 85/100 System Corruption 38% Temperature Hot (261) Movement Core (50) Location -2/Testing Parts ------- > --- POWER (2) -------- (None) > --- PROPULSION (6) --- Faulty Improved Diametric Drive > --- UTILITY (11) ----- (None) > --- WEAPON (4) ------- (None) > --- INVENTORY (5) ---- Light Antimatter Reactor Improved Weapon Cycler Zionite Phaser-S GAL Module Peak State ------------ > --- POWER ------------ Quantum Reactor Improved Quantum Reactor > --- PROPULSION ------- Myomer Leg Zionite Composite Leg II Zionite Composite Leg II Biometal Leg Experimental Myomer Leg Centrium Leg > --- UTILITY ---------- Experimental Cooling System High-capacity Storage Unit Zionite Biocell Array Enhanced Optical Array Advanced Sensor Array Advanced Signal Interpreter Experimental Target Analyzer Advanced Transmission Jammer Layered Heavy Armor Plating Advanced Force Field > --- WEAPON ----------- Zionite Phaser-S Omega Cannon CR-A16's Behemoth Slayer > --- INVENTORY -------- Light Antimatter Reactor Micro Antimatter Reactor Zionite Composite Leg II Zionite Composite Leg II Centrium Leg Advanced Power Amplifier Experimental Cooling System Experimental Coolant Injector Huge Storage Unit Improved Weapon Cycler Advanced Force Field Ghost Barrier Zionite Phaser-S Zionite Phaser-S Zionite Phaser-S Zionite Phaser-S Zionite Laser-H Gamma Bomb Array Improved Plasma Cutter GAL Module [Rating: 193] Favorites ----------- Power Quantum Reactor Engine Cooled Ion Engine Reactor Quantum Reactor Propulsion Enhanced Flexi-carbon Leg Treads Light Treads Leg Enhanced Flexi-carbon Leg Flight Unit Improved Diametric Drive Utility High-capacity Storage Unit Device Seismic Detector Storage High-capacity Storage Unit Processor Core Analyzer Hackware System Mapper Protection Zionite Weapon Casing Artifact Phase Redirector Weapon Zionite Phaser-S Energy Gun Zionite Phaser-S Energy Cannon Neutron Cannon Ballistic Gun Precision Assault Rifle Ballistic Cannon Improved Light Cannon Launcher Heavy Missile Launcher Special Weapon Improved Remote Datajack Impact Weapon Heavy Flail Slashing Weapon Chainsword Piercing Weapon CR-A16's Pointy Stick Special Melee Weapon Improved Datajack Build | -11 -10 -10 -9 -9 -9 -8 -8 -7 -7 -7 -7 -7 -7 -6 -6 -6 -6 -6 -6 -6 -5 -5 -5 -5 -5 -5 -4 -4 -4 -4 -3 -3 -3 -2 -2 ------- Run | Yrd Mat Min Mat Min Exi Min Mat Fac Was Fac Low Low Dat Pro Fac Was Fac Low Low Zio Pro Fac Ext Cet Arc Hub Fac Upp Upp War Pro Res Qua Res Tes Slots Evolved 16 | . . . 2 . . . 2 2 . . . . . . 2 . . . . . . 2 . . . . 2 . . . . 2 . 2 . Power 1 | . . . . . . . . . . . . . . . . . . . . . . . . . . . 1 . . . . . . . . Propulsion 4 | . . . 1 . . . 1 1 . . . . . . . . . . . . . 1 . . . . . . . . . . . . . Utility 9 | . . . . . . . 1 1 . . . . . . 2 . . . . . . 1 . . . . 1 . . . . 2 . 1 . Weapon 2 | . . . 1 . . . . . . . . . . . . . . . . . . . . . . . . . . . . . . 1 . Parts Attached 348 | 7 11 . 31 1 1 7 56 6 11 8 1 3 16 4 24 . 10 . 1 5 3 8 3 11 4 6 18 1 1 10 1 31 6 32 10 Power 33 | 1 2 . 5 . . . 1 . . 1 . 1 4 . 1 . . . . . . . . 3 1 . 1 . . . . 1 . 8 3 Engine 12 | 1 2 . 5 . . . 1 . . 1 . . 2 . . . . . . . . . . . . . . . . . . . . . . Core . | . . . . . . . . . . . . . . . . . . . . . . . . . . . . . . . . . . . . Reactor 21 | . . . . . . . . . . . . 1 2 . 1 . . . . . . . . 3 1 . 1 . . . . 1 . 8 3 Propulsion 71 | 2 2 . 7 1 . 3 21 1 1 3 . 1 2 . 4 . 2 . . . . 1 . . . . 1 . . 4 . 4 1 9 1 Treads 24 | . 2 . 7 1 . 3 11 . . . . . . . . . . . . . . . . . . . . . . . . . . . . Leg 46 | 2 . . . . . . 10 1 1 3 . 1 2 . 4 . 2 . . . . 1 . . . . 1 . . 4 . 4 1 9 . Wheel . | . . . . . . . . . . . . . . . . . . . . . . . . . . . . . . . . . . . . Hover . | . . . . . . . . . . . . . . . . . . . . . . . . . . . . . . . . . . . . Flight 1 | . . . . . . . . . . . . . . . . . . . . . . . . . . . . . . . . . . . 1 Utility 146 | 2 4 . 6 . 1 3 14 2 2 2 1 1 6 2 14 . 8 . . 3 1 6 3 4 1 2 15 1 1 5 1 18 4 12 1 Device 70 | 1 . . 2 . . 3 5 1 1 2 . . 4 1 6 . 5 . . 2 1 2 2 1 . . 11 1 . 3 1 7 2 6 . Storage 18 | 1 3 . 1 . . . 3 . . . . . 1 . 1 . 1 . . . . . 1 1 . . . . . . . 4 1 . . Processor 10 | . . . . . 1 . 2 . 1 . . . . . 1 . . . . . . 1 . . . . 2 . . 1 . . . . 1 Hackware 14 | . 1 . 2 . . . 2 1 . . . . . . 3 . 1 . . . . 1 . . 1 . 2 . . . . . . . . Protection 33 | . . . 1 . . . 2 . . . 1 1 1 1 3 . 1 . . 1 . 2 . 2 . 2 . . 1 1 . 7 . 6 . Artifact 1 | . . . . . . . . . . . . . . . . . . . . . . . . . . . . . . . . . 1 . . Weapon 98 | 2 3 . 13 . . 1 20 3 8 2 . . 4 2 5 . . . 1 2 2 1 . 4 2 4 1 . . 1 . 8 1 3 5 Energy Gun 40 | . . . 6 . . . 10 3 5 2 . . 2 . 2 . . . . . . . . 1 1 4 . . . . . 1 . 3 . Energy Cannon 10 | . . . 1 . . . . . . . . . 2 2 . . . . . 1 . . . . . . . . . . . 4 . . . Ballistic Gun 14 | 2 . . 3 . . . 2 . . . . . . . 3 . . . . . 1 . . 3 . . . . . . . . . . . Ballistic Cannon 6 | . 2 . 2 . . . 1 . . . . . . . . . . . . . . . . . . . . . . . . . . . 1 Launcher 9 | . . . 1 . . 1 . . 2 . . . . . . . . . . . . . . . . . . . . 1 . 1 1 . 2 Special Weapon 5 | . 1 . . . . . . . . . . . . . . . . . . . . 1 . . . . . . . . . 1 . . 2 Impact Weapon 1 | . . . . . . . 1 . . . . . . . . . . . . . . . . . . . . . . . . . . . . Slashing Weapon 7 | . . . . . . . 5 . 1 . . . . . . . . . 1 . . . . . . . . . . . . . . . . Piercing Weapon 2 | . . . . . . . . . . . . . . . . . . . . . 1 . . . . . . . . . . 1 . . . Special Melee Weapon 4 | . . . . . . . 1 . . . . . . . . . . . . 1 . . . . 1 . 1 . . . . . . . . Unidentified Prototypes 45 | . . . 3 . . . 4 . 1 1 . . 4 . 5 . . . . . . . . 2 . . 1 . . 6 . 8 1 4 5 Corrupted Parts 5 | . . . . . . . . . . . . . . . . . . . . 1 . . . . . . . . . 3 . . . . 1 System Corruption 41 | . . . . . . . . . . . . . . . . . . . . 2 . . . . . . . . . 29 . . . . 10 Parts Lost 61 | . . . 3 . . 2 12 . . . . 1 4 . . . . . . . . 1 1 . . . . . 2 . . 3 . 16 16 Power 9 | . . . 1 . . . 1 . . . . . 1 . . . . . . . . . . . . . . . . . . 1 . 3 2 Propulsion 21 | . . . 1 . . 2 7 . . . . 1 . . . . . . . . . . . . . . . . . . . 1 . 4 5 Utility 21 | . . . . . . . 2 . . . . . 2 . . . . . . . . . 1 . . . . . 1 . . 1 . 9 5 Weapon 10 | . . . 1 . . . 2 . . . . . 1 . . . . . . . . 1 . . . . . . 1 . . . . . 4 Highest Loss Streak 16 | . . . 1 . . 2 4 . . . . 1 3 . . . . . . . . 1 1 . . . . . 2 . . 1 . 11 16 To Critical Strikes 3 | . . . . . . . 1 . . . . 1 . . . . . . . . . . . . . . . . . . . . . 1 . Average Backups 18 | 3 8 10 19 20 20 19 18 18 19 19 20 18 13 20 18 18 18 18 20 19 19 18 18 18 19 18 17 18 18 17 17 17 18 16 16 Power 1 | . . . 1 1 1 1 1 1 2 1 1 1 1 2 . . . . . . . . 1 1 2 2 1 2 2 2 3 1 1 1 2 Propulsion 2 | 1 . . 2 3 3 1 2 2 2 . . . 1 2 1 2 2 4 4 4 4 5 6 5 6 5 2 3 3 1 2 1 1 1 2 Utility 8 | . 1 3 6 5 5 4 6 6 8 8 10 9 7 14 11 11 12 12 13 12 12 9 9 8 7 7 8 10 10 10 11 11 11 8 6 Weapon 5 | . 6 7 9 11 11 11 7 8 7 8 8 8 2 2 3 5 4 2 3 2 2 2 1 2 4 3 3 3 2 2 1 3 4 3 4 Tool/Special . | . . . . . . . . . . . . . . . . . . . . . . . . . . . . . . . . . . . . Unused Backups 71 | 1 5 . 7 . . . 12 4 . 3 . 2 4 . 4 . 5 . . 1 . 2 . 6 . 3 1 . . 2 . 1 . 2 6 Power 4 | . . . . . . . 1 . . 1 . . . . . . . . . . . . . 1 . 1 . . . . . . . . . Propulsion 10 | . . . . . . . . . . . . . . . . . . . . . . 1 . 2 . 2 1 . . . . . . 2 2 Utility 34 | 1 . . 3 . . . 4 . . 2 . 1 4 . 4 . 5 . . . . 1 . 3 . . . . . 2 . 1 . . 3 Weapon 22 | . 5 . 4 . . . 7 4 . . . . . . . . . . . 1 . . . . . . . . . . . . . . 1 Tool/Special 1 | . . . . . . . . . . . . 1 . . . . . . . . . . . . . . . . . . . . . . . Average Slot Usage (%) 92 | . 99 100 97 100 92 98 95 99 99 100 100 99 92 100 99 93 96 80 80 80 80 71 75 75 76 76 87 89 89 98 99 99 100 94 76 Engine 3 | . 14 14 10 11 11 11 7 7 7 7 7 . 3 . . . . . . . . . . . . . . . . . . . . . . Reactor 4 | . . . . . . . . . . . . 6 2 7 6 6 5 6 6 6 6 5 5 5 5 5 9 10 10 10 10 8 9 7 6 Treads 9 | . 26 28 32 33 33 32 26 . . . . . . . . . . . . . . . . . . . . . . . . . . . . Leg 18 | . 1 . . . . . 6 38 38 38 38 38 38 38 33 33 31 20 20 20 20 14 11 11 11 11 19 21 21 30 31 27 28 25 21 Device 11 | . 13 14 9 11 3 10 8 7 6 7 7 6 4 7 10 6 6 19 19 20 18 16 19 23 22 16 11 10 10 10 10 14 14 15 13 Storage 7 | . 14 14 11 11 11 11 9 7 7 7 7 7 7 7 6 6 6 6 6 6 6 5 7 5 5 8 5 5 5 5 5 8 9 6 6 Processor 7 | . . . . . . . 7 7 13 15 15 7 7 7 6 6 6 6 6 6 6 5 5 5 5 5 13 15 15 15 15 14 14 13 11 Hackware 1 | . . . 1 . . . . 6 1 . . . . . 10 13 11 . . . . . . . . . . . . . . . . . . Protection 3 | . . . . . . . . . . . . 6 7 7 4 . 6 . . . . 5 5 4 5 8 9 10 10 10 10 9 9 7 3 Energy Gun 12 | . . . 22 33 33 32 19 15 20 20 23 22 3 1 . . . . . . . . . . . 9 14 14 14 13 13 13 13 16 10 Energy Cannon 4 | . . . . . . . . . . . . . 1 21 14 . 7 19 20 18 19 13 11 4 . . . . . . . . . . . Ballistic Gun 1 | . 2 . 2 . . . . . . . . . . . 5 13 10 . . . . . . 6 13 6 . . . . . . . . . Ballistic Cannon 1 | . 24 28 6 . . . . . . . . . . . . . . . . . . . . . . . . . . . . . . . 1 Slashing Weapon 1 | . . . . . . . 7 6 . 1 . . 13 . . . . . . . . . . . . . . . . . . . . . . Peak Build Rating 193 | 7 12 10 23 21 22 24 41 47 55 58 58 59 77 78 97 93 97 93 96 97 97 106 108 117 117 118 133 133 133 145 145 167 170 182 193 Average Rating 78 | 4 9 10 20 21 19 21 28 44 49 54 55 56 56 75 91 92 90 92 93 92 93 100 104 108 115 116 128 131 130 139 140 162 165 170 151 On Entrance 82 | . 7 10 10 21 21 19 24 38 47 52 55 58 56 77 75 93 89 94 93 93 97 96 104 97 114 117 116 133 133 131 143 141 164 167 170 Avg Prop Armor Cover (%) 4 | . . . . . . . 11 . . . . 4 . . . . . . . . . . . . . . . . . . . 3 . . . Naked Turns 42 | . . . . . . . . . . . . . . . . . . . . . . . . . . . . . . . . . . . 42 Heaviest Build 161 | 13 54 34 61 58 58 58 67 62 69 64 64 77 87 93 106 83 105 98 98 104 105 113 107 99 99 99 108 108 108 123 109 128 161 139 149 Greatest Support 168 | 20 40 40 60 60 60 62 82 86 92 95 95 95 110 110 120 110 110 106 106 106 106 122 100 100 100 100 134 134 134 168 168 168 165 165 164 Greatest Overweight (x) 4 | 1 4 . 1 . . 2 4 . . . . . . . . . 1 . . . . 2 1 . . . 1 . . . . . . . 3 Average Overweight (x) . | . . . . . . . . . . . . . . . . . . . . . . . . . . . . . . . . . . . . Largest Inventory Capacity 25 | 8 20 15 20 20 20 20 20 20 20 20 20 20 20 20 20 20 20 20 20 20 20 20 20 20 20 20 20 20 20 20 20 20 25 25 25 Average Capacity 19 | 7 13 15 19 20 20 20 20 20 20 20 20 20 20 20 20 20 20 20 20 20 20 20 20 20 20 20 20 20 20 20 20 20 21 20 18 Most Carried 24 | 7 10 10 20 20 20 20 20 20 20 20 20 20 20 20 20 20 20 20 20 20 20 20 20 20 20 20 20 20 20 20 20 20 24 23 20 Average Carried 18 | 3 8 10 19 20 20 19 18 18 19 19 20 19 13 19 19 19 19 18 20 19 20 19 19 19 19 19 19 19 19 18 19 19 20 18 17 Final Capacity 25 | 8 15 15 20 20 20 20 20 20 20 20 20 20 20 20 20 20 20 20 20 20 20 20 20 20 20 20 20 20 20 20 20 20 25 20 5 Final Carried 24 | 5 10 10 20 20 20 20 20 20 20 20 20 19 20 20 20 20 17 20 20 20 20 20 20 20 20 20 20 20 20 20 20 20 24 20 4 Class Distribution -------------------- 29% | Scavenger-Gunner 18% | Messiah-Tank 14% | Gunner 8% | Mutant 6% | Hacker-Gunner 5% | Scavenger-Mutant 4% | Messiah-Skirmisher 3% | Commander-Gunner 3% | Commander-Tank Dominant Class ---------------- Mutant | -10/Materials Mutant | -10/Mines Gunner | -9/Materials Gunner | -9/Mines Commander-Gunner | -9/Exiles Gunner | -8/Mines Scavenger-Gunner | -8/Materials Mutant | -7/Factory Scavenger-Gunner | -7/Waste Scavenger-Gunner | -7/Factory Scavenger-Gunner | -7/Lower Caves Scavenger-Gunner | -7/Lower Caves Scavenger-Gladiator | -7/Data Miner Scavenger-Gunner | -6/Proximity Caves Hacker-Gunner | -6/Factory Hacker-Gunner | -6/Waste Hacker-Gunner | -6/Factory Scavenger-Gunner | -6/Lower Caves Scavenger-Gunner | -6/Lower Caves Scavenger-Gunner | -6/Zion Scavenger-Gunner | -5/Proximity Caves Scavenger-Mutant | -5/Factory Commander-Tank | -5/Extension Commander-Mutant | -5/Cetus Commander-Mutant | -5/Archives Commander-Tank | -5/Hub_04(d) Messiah-Tank | -4/Factory Messiah-Tank | -4/Upper Caves Messiah-Tank | -4/Upper Caves Messiah-Tank | -4/Warlord Messiah-Skirmisher | -3/Proximity Caves Messiah-Tank | -3/Research Messiah-Tank | -3/Quarantine Messiah-Tank | -2/Research Messiah-Skirmisher | -2/Testing Resources | -11 -10 -10 -9 -9 -9 -8 -8 -7 -7 -7 -7 -7 -7 -6 -6 -6 -6 -6 -6 -6 -5 -5 -5 -5 -5 -5 -4 -4 -4 -4 -3 -3 -3 -2 -2 ----------- Run | Yrd Mat Min Mat Min Exi Min Mat Fac Was Fac Low Low Dat Pro Fac Was Fac Low Low Zio Pro Fac Ext Cet Arc Hub Fac Upp Upp War Pro Res Qua Res Tes Matter Collected 12294 | 160 701 128 1167 26 20 202 1255 . 499 225 40 251 379 269 1037 640 892 101 167 78 110 60 412 200 100 150 531 90 80 248 110 991 261 608 106 Remotely 10 | . . . . . . 10 . . . . . . . . . . . . . . . . . . . . . . . . . . . . . Salvage Created 19861 | 184 819 243 1682 478 41 200 2543 . 707 859 275 27 379 252 1413 997 836 45 70 . 210 80 307 27 272 138 417 734 201 449 446 2060 490 1728 252 Parts 900 | 15 31 12 98 24 3 19 140 . 9 29 4 3 24 8 68 . 41 4 4 . 8 6 12 . 18 3 25 15 12 15 28 88 38 85 11 Haulers Intercepted 20 | . 2 . 6 . . . 6 . . 4 . . . . . . . . . . . . . . . . . . . . . 2 . . . Recyclers Shooed 22 | . 2 . 2 . . 1 4 . . 2 . . . . 1 . 2 . . . . . . . . 2 2 . . . . 3 . 1 . Parts Field Recycled . | . . . . . . . . . . . . . . . . . . . . . . . . . . . . . . . . . . . . Retrieved Matter . | . . . . . . . . . . . . . . . . . . . . . . . . . . . . . . . . . . . . Parts Self-Destructed 170 | . . . . . . . . . . . 4 11 . 7 . . . 5 13 . 16 . . . . . . 31 42 . 41 . . . . Prevented 8 | . . . . . . . . . . . 2 . . 1 . . . . . . 2 . . . . . . . 3 . . . . . . Parts Restored . | . . . . . . . . . . . . . . . . . . . . . . . . . . . . . . . . . . . . Kills | -11 -10 -10 -9 -9 -9 -8 -8 -7 -7 -7 -7 -7 -7 -6 -6 -6 -6 -6 -6 -6 -5 -5 -5 -5 -5 -5 -4 -4 -4 -4 -3 -3 -3 -2 -2 ------- Run | Yrd Mat Min Mat Min Exi Min Mat Fac Was Fac Low Low Dat Pro Fac Was Fac Low Low Zio Pro Fac Ext Cet Arc Hub Fac Upp Upp War Pro Res Qua Res Tes Combat Hostiles Destroyed 274 | . 16 7 31 13 . 5 38 . 3 9 5 4 4 7 19 6 8 3 1 . 3 4 3 . . . 5 4 3 16 6 23 6 20 2 Melee 15 | . . . . . . . 11 . . . . . 4 . . . . . . . . . . . . . . . . . . . . . . Guns 146 | . 4 . 16 13 . 3 25 . 1 9 4 . . . 9 . 2 . . . . . . . . . 5 4 3 . 5 22 6 15 . Cannons 58 | . 12 7 15 . . . . . . . . . . 4 8 . 2 . 1 . 1 4 3 . . . . . . . . . . . 1 AOE 48 | . . . . . . 2 1 . 2 . . 4 . 3 2 6 3 3 . . 2 . . . . . . . . 16 . . . 3 1 Classes Destroyed 25 | 2 7 1 1 . . . 3 . 1 2 1 1 . 1 . . . . . . 1 . . . . . . . . 2 . 1 . . 1 Worker 17 | . 2 . 5 . . 2 4 . . . . . . . . . . . . . . . . . . . . . . . . . 1 3 . Builder 14 | . 1 . 3 . . . . . . . . . . . 1 . 1 . . . . . 2 . . 1 . . . . . 2 . 2 1 Tunneler 13 | 5 1 . 1 1 . 1 3 . . . . . . . . . . . . . . . . . . . . . . . . . . 1 . Hauler 20 | . 2 . 6 . . . 6 . . 4 . . . . . . . . . . . . . . . . . . . . . 2 . . . Recycler 30 | 1 3 1 5 3 . 1 3 . . 2 . . . . 3 . 4 . . . . . . . . 1 1 . . . . 1 . . 1 Minesweeper 1 | . . . . . . . . . . . . 1 . . . . . . . . . . . . . . . . . . . . . . . Operator 12 | . 1 . 1 . . . . . . . . . . . . . 1 . . . . 1 . . 8 . . . . . . . . . . Watcher 15 | . 1 . 3 . . . 4 . . 1 . . . . 1 . . . . . . . 1 . . . . . . . . 1 2 1 . Swarmer 62 | . 5 . 13 8 . 3 5 . . . . 4 . 3 3 . 3 3 . . 2 4 . . . . . . . 5 . 1 . . . Cutter 5 | . . . . . . . 2 . . . . . . . . . . . . . . . . . . . . . . . . 1 . 2 . Grunt 95 | . 11 6 9 5 . 2 13 . . 5 2 . . 1 8 . . . . . 1 . 3 . . . . 1 2 6 4 11 . 5 . Brawler 2 | . . . . . . . . . . . 1 . . . . . . . . . . . . . . . . . . . . 1 . . . Duelist 4 | . . . . . . . 2 . . . 1 . . . . . . . . . . . . . . . . . . . . 1 . . . Protector 1 | . . . . . . . . . . . . . . . . . . . . . . . . . . . . . . 1 . . . . . Researcher 1 | . . . . . . . . . . . . . . . . . . . . . . . . . . . . . . . . . . . 1 Sentry 28 | . . . 9 . . . 8 . . 1 1 . . 1 4 . 1 . . . . . . . . . 1 . . . . . . 2 . Demolisher 2 | . . 1 . . . . . . . . . . . . . . . . . . . . . . . . . . . 1 . . . . . Specialist 10 | . . . . . . . 8 . . . . . . . . . . . . . . . . . . . . . . . . . . 2 . Hunter 6 | . . . . . . . . . . 1 . . . 1 . . . . 1 . . . . . . . 1 . . . . . . 2 . Programmer 37 | . . . . . . . . . . 2 . . . . 4 . 3 . . . . . . . . . 3 . 1 2 1 7 6 6 2 Behemoth 5 | . . . . . . . . . . . . . . 1 . . 1 . . . . . . . . . . . . . 1 1 . 1 . Compactor 9 | . . . . . . . . . 3 . . . . . . 6 . . . . . . . . . . . . . . . . . . . Enhanced Grunt 4 | . . . . . . . . . . . . . 4 . . . . . . . . . . . . . . . . . . . . . . Striker 1 | . . . . . . . . . . . . . . . . . . . . . . . . . . . . . . 1 . . . . . Z-Light 2 | . . . . . . . . . . . . . . . . . . . . . . . . . . . . . . . . 2 . . . Decomposer 1 | . . . . . . . . . . . . . . . . . . . 1 . . . . . . . . . . . . . . . . Wasp 5 | . . . . . . . . . 1 1 . . . . . . . . . . . . . . . . . 3 . . . . . . . Thug 3 | . . . . . . . . . . . . . . . . . . . . . 1 . 1 . . . . . . 1 . . . . . Martyr 2 | . . . . . . . . . 2 . . . . . . . . . . . . . . . . . . . . . . . . . . Mutant 2 | . . . . . . . . . . . . . . . . . . . . . 2 . . . . . . . . . . . . . . Best Kill Streak 9 | 6 4 4 7 5 . 3 5 . 1 4 3 4 1 5 8 4 4 3 1 . 2 4 4 . 3 1 2 3 2 5 3 4 3 9 3 Combat Bots Only 8 | . 4 3 7 4 . 3 3 . 1 3 3 4 1 5 6 4 3 3 1 . 2 4 2 . . . 2 3 2 5 3 4 3 8 1 Max Kills in Single Turn 6 | 1 2 2 2 2 . 1 2 . 1 2 1 2 1 2 2 1 2 3 1 . 4 1 2 1 1 1 1 2 1 6 3 2 1 2 2 Gunslinging 2 | . 1 . 1 1 . . 1 . . . . . . . 1 . . . . . . . . . . . . 1 . . 2 1 . . . Exploded 5 | . . . . . . 1 1 . 1 . . 2 . 2 1 1 2 3 . . 2 . . . . . . . . 5 . . . 1 1 Melee 1 | . . . . . . . 1 . . . . . 1 . . . . . . . . . . . . . . . . . . . . . . Uniques/NPCs Destroyed 2 | . . . . . . . . . . . . . 1 . . . . . . . . . . 1 . . . . . . . . . . . Data Miner (-7/Data Miner) A7 (-5/Cetus) Combat | -11 -10 -10 -9 -9 -9 -8 -8 -7 -7 -7 -7 -7 -7 -6 -6 -6 -6 -6 -6 -6 -5 -5 -5 -5 -5 -5 -4 -4 -4 -4 -3 -3 -3 -2 -2 -------- Run | Yrd Mat Min Mat Min Exi Min Mat Fac Was Fac Low Low Dat Pro Fac Was Fac Low Low Zio Pro Fac Ext Cet Arc Hub Fac Upp Upp War Pro Res Qua Res Tes Hostile Shots Fired 1822 | . 68 7 181 33 . 40 209 . . 26 30 7 22 55 138 . 56 . 3 . 11 50 16 1 . 1 28 17 57 . 46 152 44 301 223 Missed 553 | . 23 2 54 6 . 12 68 . . 13 13 3 3 20 50 . 25 . 1 . 2 16 3 1 . . 8 5 17 . 12 43 7 81 65 Hits 1269 | . 45 5 127 27 . 28 141 . . 13 17 4 19 35 88 . 31 . 2 . 9 34 13 . . 1 20 12 40 . 34 109 37 220 158 Melee 28 | . . . . . . . 15 . . . . . . . . . . . . . . . . . . 1 . . . . . 1 . 2 9 Projectile 1241 | . 45 5 127 27 . 28 126 . . 13 17 4 19 35 88 . 31 . 2 . 9 34 13 . . . 20 12 40 . 34 108 37 218 149 AOE 12 | . . . . . . . 3 . . 1 . . . . . . . . . . . . . . . 1 . . . . . . . 2 5 Critical Strikes 71 | . 3 . 2 . . 1 9 . . 1 . 1 . . 3 . 1 . . . . . . . . . 1 1 . . 3 12 1 15 17 Actively Blocked 3 | . . . . . . . . . . . . . . . . . . . . . . . . . . . . . . . . 1 . 2 . Part Disruptions 5 | . . . . . . . . . . . . . . . . . . . . . . . . . . . 1 . . . . 2 . 1 1 Actively Blocked 1 | . . . . . . . . . . . . . . . . . . . . . . . . . . . . . . . . . . 1 . Damage Taken 20127 | . 467 52 1390 247 . 421 2167 . 39 177 126 61 875 409 874 37 267 66 56 . 101 655 169 41 . 34 217 167 532 18 345 1376 429 4298 4014 Core 2573 | . 15 10 136 8 . 49 322 . . 35 17 15 43 44 30 . 52 . . . 13 60 9 12 . 8 32 36 . . 52 131 . 375 1069 Absorbed by Shields 5355 | . . . . . . . . . . . . . . . 281 . 75 . . . . . 66 44 . 34 185 175 328 18 356 1400 449 1492 452 Redirected to Shielding 1094 | . . . . . . . . . . . . . . . . . . . . . . . . . . . 43 22 88 . 29 241 60 611 . Ignored by Resistances 203 | . . . . . . . . . . . . . . . . . . . . . . . . . . . . . . . . . . 203 . Regen/Repaired (Parts) 1051 | . 196 . 121 . . . . . 97 10 . . . . 289 . 319 . . . . . . . . . . . . 19 . . . . . Core Remaining (%) 79 | 100 . 90 . . . 51 41 . . . . . . 78 . . . . . . 88 . . . . 91 . . . . 89 . 89 . . Volleys Fired 971 | 7 60 12 100 18 2 18 90 . 12 21 8 12 . 11 90 39 44 3 3 1 5 29 10 . . 2 38 24 10 21 11 127 54 65 24 Largest 4 | 2 2 2 3 3 3 3 3 . 3 3 3 3 . 3 3 1 3 1 3 1 3 2 2 . . 1 3 3 3 3 3 3 3 4 3 Hottest 270 | 40 100 66 177 177 177 177 189 . 240 240 240 240 . 270 270 39 270 90 270 90 270 180 180 . . 60 180 180 180 180 180 180 180 240 220 Shots Fired 2220 | 14 116 24 294 54 6 49 258 . 28 61 24 25 . 29 185 39 92 4 10 1 7 42 17 . . 2 67 69 30 34 33 256 118 195 37 Gun 1616 | 14 22 . 175 54 6 46 255 . 12 61 24 21 . 5 78 . 42 . . . . . . . . 2 67 69 30 24 33 243 118 188 27 Cannon 498 | . 90 24 118 . . . . . . . . . . 22 104 . 46 2 10 1 7 40 14 . . . . . . . . 11 . . 9 Launcher 97 | . . . 1 . . 3 3 . 16 . . 4 . 2 3 39 4 2 . . . 1 . . . . . . . 10 . 1 . 7 1 Special 9 | . 4 . . . . . . . . . . . . . . . . . . . . 1 3 . . . . . . . . 1 . . . Kinetic 463 | 14 112 24 184 . . . . . . . . . . . 78 . 42 . . . . . . . . . . . . . . . . . 9 Thermal 855 | . 4 . 109 54 6 46 255 . 12 61 24 21 . 27 104 . 46 2 10 1 7 40 14 . . . . . . . . 11 . . 1 Explosive 79 | . . . 1 . . 3 3 . 16 . . 4 . 2 3 39 4 2 . . . 1 . . . . . . . . . 1 . . . Electromagnetic 8 | . . . . . . . . . . . . . . . . . . . . . . . . . . . . . . . . . . 7 1 Entropic 10 | . . . . . . . . . . . . . . . . . . . . . . . . . . . . . . 10 . . . . . Phasic 800 | . . . . . . . . . . . . . . . . . . . . . . . . . . 2 67 69 30 24 33 243 118 188 26 Robot Hit Streak 24 | 3 7 4 15 13 5 6 13 . 14 20 9 4 . 10 17 8 20 . 2 . 1 3 8 . . . 12 10 3 2 6 10 12 24 6 Robot Miss Streak 11 | 2 3 4 8 8 3 11 9 . 3 6 2 4 . 2 2 2 4 . 2 . 2 8 2 . . . 2 5 3 . 2 4 5 3 2 Penetration Max . | . . . . . . . . . . . . . . . . . . . . . . . . . . . . . . . . . . . . Secondary Targets 44 | . 2 . 4 4 . 1 6 . . 3 . . . . 2 . . . . . . . . . . . 1 1 . . 2 8 3 7 . Max Gunslinging Chain 2 | . 1 . 2 1 . 1 1 . . 1 . . . . 1 . . . . . . . . . . . 1 1 . . 2 1 1 1 . Shots Hit Robots 1259 | 6 62 10 148 39 5 29 201 . 26 44 21 8 30 18 92 27 41 . 5 1 2 10 11 3 22 2 30 38 15 2 18 114 39 124 16 Core Hits 743 | 7 33 9 71 39 3 26 98 . 16 53 14 12 16 14 50 18 20 5 2 . 7 2 6 2 8 . 12 19 6 29 9 50 13 60 14 Critical Kills 1 | . . . . . . . . . . . . . . . . . 1 . . . . . . . . . . . . . . . . . . Critical Parts Destroyed . | . . . . . . . . . . . . . . . . . . . . . . . . . . . . . . . . . . . . Critical Strikes 101 | . 1 3 9 . . 1 21 . . . . . 4 . . . 1 . . . . . . . 1 . 1 6 1 . 4 21 9 15 3 Burn 22 | . . . 5 . . 1 16 . . . . . . . . . . . . . . . . . . . . . . . . . . . . Meltdown 1 | . . . . . . . . . . . . . . . . . 1 . . . . . . . . . . . . . . . . . . Blast 10 | . 1 3 4 . . . . . . . . . . . . . . . . . . . . . . . . . . . . . . . 2 Sever 9 | . . . . . . . 5 . . . . . 4 . . . . . . . . . . . . . . . . . . . . . . Impale 1 | . . . . . . . . . . . . . . . . . . . . . . . . . 1 . . . . . . . . . . Intensify 58 | . . . . . . . . . . . . . . . . . . . . . . . . . . . 1 6 1 . 4 21 9 15 1 Melee Attacks 252 | . . . . . . . 84 9 2 10 . . 66 . . . . . . 1 2 3 7 14 38 6 1 1 1 . 3 1 . 2 1 Impact . | . . . . . . . . . . . . . . . . . . . . . . . . . . . . . . . . . . . . Slashing 168 | . . . . . . . 81 9 2 10 . . 66 . . . . . . . . . . . . . . . . . . . . . . Piercing 70 | . . . . . . . . . . . . . . . . . . . . . 2 3 7 14 30 6 . . 1 . 3 1 . 2 1 Sneak Attacks 40 | . . . . . . . 9 . 2 . . . 1 . . . . . . 1 . . . 3 19 2 1 1 . . . . . 1 . Combat Hostiles . | . . . . . . . . . . . . . . . . . . . . . . . . . . . . . . . . . . . . Follow-up Attacks 21 | . . . . . . . 12 . . . . . 9 . . . . . . . . . . . . . . . . . . . . . . Damage Inflicted 52006 | 82 1288 311 2843 650 92 566 4468 . 2231 1356 441 640 1160 803 3138 5219 1616 321 231 . 744 504 534 157 855 181 1031 1254 729 5185 560 5160 1353 4602 1701 Guns 23626 | 82 195 . 1678 588 92 433 2790 . 332 1289 441 287 . 140 1139 . 562 . . . . . . . . 41 957 1254 693 . 528 4488 1353 4059 205 Cannons 6784 | . 1078 270 1023 . . . . . . . . . . 444 1435 . 637 . 215 . 39 351 488 . . . . . . . . . . . 804 Explosions 16637 | . . . . . . 103 61 . 1757 . . 353 . 219 449 5219 400 321 . . 675 153 . . . . . . . 5185 . 633 . 467 642 Melee 4195 | . . . . . . . 1557 . 142 . . . 1160 . . . . . . . 30 . . 157 855 126 . . 36 . 32 . . 69 31 Ramming 764 | . 15 41 142 62 . 30 60 . . 67 . . . . 115 . 17 . 16 . . . 46 . . 14 74 . . . . 39 . 7 19 Kinetic 5740 | 82 1273 270 1610 . . . . . . . . . . . 1139 . 562 . . . . . . . . . . . . . . . . . 804 Thermal 12569 | . . . 1091 588 92 433 2790 . 332 1289 441 287 . 584 1435 . 637 . 215 . 714 504 488 . . . . . . . . . . 109 540 Explosive 9515 | . . . . . . 103 61 . 1757 . . 353 . 219 449 5219 400 321 . . . . . . . . . . . . . 633 . . . Electromagnetic 500 | . . . . . . . . . . . . . . . . . . . . . . . . . . . . . . . . . . 358 142 Impact . | . . . . . . . . . . . . . . . . . . . . . . . . . . . . . . . . . . . . Slashing 2859 | . . . . . . . 1557 . 142 . . . 1160 . . . . . . . . . . . . . . . . . . . . . . Piercing 1336 | . . . . . . . . . . . . . . . . . . . . . 30 . . 157 855 126 . . 36 . 32 . . 69 31 Entropic 5185 | . . . . . . . . . . . . . . . . . . . . . . . . . . . . . . 5185 . . . . . Phasic 13538 | . . . . . . . . . . . . . . . . . . . . . . . . . . 41 957 1254 693 . 528 4488 1353 4059 165 Highest Corruption 38 | . . . 4 4 4 4 2 . . . . . . . . 18 19 19 19 19 . . . . . . 2 . . 29 1 6 15 23 38 Average Corruption 6 | . . . 4 4 4 4 2 . . . . . . . . 12 18 19 19 16 . . . . . . 1 . . 24 1 4 10 7 26 Corruption Purged 3 | . . . . . . . . . . . . . . . . . . . . . . . . . . . 3 . . . . . . . . Corruption Blocked . | . . . . . . . . . . . . . . . . . . . . . . . . . . . . . . . . . . . . Effects 464 | . . . 70 21 21 16 59 . . . . . . . . 5 85 21 43 2 . . . . . . 1 . . 1 4 26 49 20 20 Message Errors 102 | . . . 15 4 3 2 17 . . . . . . . . 1 21 6 7 1 . . . . . . . . . . 1 5 8 5 6 Matter Fused 104 | . . . 18 1 5 6 15 . . . . . . . . . 20 3 12 . . . . . . . 1 . . 1 . 6 8 3 5 Heat Flow Errors 53 | . . . 8 5 2 1 5 . . . . . . . . . 13 3 7 . . . . . . . . . . . 1 4 3 . 1 Energy Discharges 64 | . . . 10 4 6 2 7 . . . . . . . . 1 8 3 6 . . . . . . . . . . . 1 5 8 1 2 Parts Rejected 3 | . . . . . . . 1 . . . . . . . . . . . . . . . . . . . . . . . . 2 . . . Parts Fused 7 | . . . 1 . . . 2 . . . . . . . . . . . 1 . . . . . . . . . . . . . 1 1 1 Data Loss (minor) 67 | . . . 10 5 3 4 7 . . . . . . . . . 10 2 6 1 . . . . . . . . . . 1 2 11 5 . Data Loss (major) 24 | . . . 5 2 1 . 2 . . . . . . . . . 4 3 2 . . . . . . . . . . . . 1 3 . 1 Misfires 18 | . . . 3 . . 1 . . . . . . . . . 1 4 1 1 . . . . . . . . . . . . 1 5 1 . Alerts 7 | . . . . . 1 . 1 . . . . . . . . 1 1 . 1 . . . . . . . . . . . . . 1 . 1 Misdirections 7 | . . . . . . . . . . . . . . . . . . . . . . . . . . . . . . . . . . 4 3 Weapon Failures 8 | . . . . . . . 2 . . . . . . . . 1 4 . . . . . . . . . . . . . . . 1 . . Overload Shots 9 | . . . . . . . . . . . . 2 . . . . . . . . . . . . . . . . . . . 7 . . . Overflow Damage 1326 | . 19 . . . . . 161 . . . . 6 39 1 12 . 152 . 14 . 23 147 14 . 139 66 . . . 317 . . . 39 177 Projectiles 360 | . 19 . . . . . . . . . . . . . 7 . 84 . . . . 65 8 . . . . . . . . . . . 177 Explosions 497 | . . . . . . . . . . . . 6 . 1 . . 68 . . . 23 82 . . . . . . . 317 . . . . . Melee 469 | . . . . . . . 161 . . . . . 39 . 5 . . . 14 . . . 6 . 139 66 . . . . . . . 39 . Knockbacks 34 | . 12 1 11 . . . . . . 2 . . . . 2 . . . . . . . . . . . . . . . . . . 1 5 Impact 7 | . . . . . . . . . . 2 . . . . 2 . . . . . . . . . . . . . . . . . . 1 2 Kinetic 25 | . 12 1 9 . . . . . . . . . . . . . . . . . . . . . . . . . . . . . . . 3 Secondary 2 | . . . 2 . . . . . . . . . . . . . . . . . . . . . . . . . . . . . . . . Self-Inflicted Damage 643 | . . . . . . . 20 . 39 . . . . . . 40 . 66 . . . 108 . . . . . . . . . 45 . 285 40 Shots 26 | . . . . . . . 1 . 1 . . . . . . 2 . 1 . . . 1 . . . . . . . . . 1 . 15 4 Rammed 41 | . 3 8 11 7 . 2 5 . . . . . . . . . . . . . . . . . . . . . . . . . . . 5 Targets Rammed 81 | . 3 8 13 8 . 4 9 . . 5 . . . . 5 . 3 . 1 . . . 1 . . 2 7 1 . . . 3 . 3 5 Kicked 33 | . . . . . . . 2 . . 5 . . . . 5 . 3 . 1 . . . 1 . . 2 7 1 . . . 3 . 3 . Crushed 7 | . . . 2 1 . 2 2 . . . . . . . . . . . . . . . . . . . . . . . . . . . . Highest Temperature 453 | . 138 36 334 199 179 199 408 . 159 291 210 319 . 409 453 104 266 218 326 34 136 196 182 . . 16 194 325 228 200 200 337 196 199 261 Average Temperature 88 | . 26 15 84 100 87 104 106 . 84 89 87 99 . 124 83 44 69 74 120 20 74 87 69 . . 12 58 132 112 122 106 90 89 96 47 Received Heat Transfer 3203 | . 195 30 435 51 . 171 576 . . 12 36 . . 72 274 . . . . . 9 . 39 . . . 8 20 60 . 35 132 . 417 631 Effects 9 | . . . . . . . 3 . . . . . . . 1 . . . 2 . . . . . . . . 3 . . . . . . . Energy Bleed 1 | . . . . . . . . . . . . . . . . . . . . . . . . . . . . 1 . . . . . . . Interference 7 | . . . . . . . 3 . . . . . . . . . . . 2 . . . . . . . . 2 . . . . . . . Short Circuit 1 | . . . . . . . . . . . . . . . 1 . . . . . . . . . . . . . . . . . . . . Siege Activations . | . . . . . . . . . . . . . . . . . . . . . . . . . . . . . . . . . . . . Martial Activations . | . . . . . . . . . . . . . . . . . . . . . . . . . . . . . . . . . . . . Shielding Activations . | . . . . . . . . . . . . . . . . . . . . . . . . . . . . . . . . . . . . Robots Disrupted 2 | . . . . . . . . . . . . . . 1 1 . . . . . . . . . . . . . . . . . . . . Combat Hostiles 2 | . . . . . . . . . . . . . . 1 1 . . . . . . . . . . . . . . . . . . . . Robots Corrupted 2 | . . . . . . . . . . . . . . . . . . . . . . . 1 . . . . . . . . . . 1 . Combat Hostiles 1 | . . . . . . . . . . . . . . . . . . . . . . . . . . . . . . . . . . 1 . Parts Fried 11 | . . . . . . . . . . . . . . . . . . . . . . . 4 . . 1 . . . . . . . 6 . Impact Corruptions 3 | . . . . . . . . . . . . . . . 1 . . . 1 . . . 1 . . . . . . . . . . . . Robots Melted 5 | . . . 1 . . . 1 . . . 1 . . . . . 1 . . . 1 . . . . . . . . . . . . . . Combat Hostiles 3 | . . . . . . . 1 . . . 1 . . . . . 1 . . . . . . . . . . . . . . . . . . Parts Melted 44 | . . . 8 1 . . 19 . . 8 1 . . 1 1 . 4 . . . . . . . . . . . . . . . . 1 . Heat Transferred 19874 | . . . 2690 1074 141 876 7058 . 750 2850 1000 650 . 450 700 . 250 . 50 . 800 100 . . . . . . . . . . . 100 335 Parts Sabotaged . | . . . . . . . . . . . . . . . . . . . . . . . . . . . . . . . . . . . . Parts Stolen . | . . . . . . . . . . . . . . . . . . . . . . . . . . . . . . . . . . . . Parts Stripped . | . . . . . . . . . . . . . . . . . . . . . . . . . . . . . . . . . . . . Power Chain Reactions 7 | . . . . . . . . . . . . . . . . . . . . . . . . . . . . . . . . . . 5 2 Alert | -11 -10 -10 -9 -9 -9 -8 -8 -7 -7 -7 -7 -7 -7 -6 -6 -6 -6 -6 -6 -6 -5 -5 -5 -5 -5 -5 -4 -4 -4 -4 -3 -3 -3 -2 -2 ------- Run | Yrd Mat Min Mat Min Exi Min Mat Fac Was Fac Low Low Dat Pro Fac Was Fac Low Low Zio Pro Fac Ext Cet Arc Hub Fac Upp Upp War Pro Res Qua Res Tes Maximum Alert Level 3 | . . . 1 . . . 2 . . 1 . . . . 1 . 1 . . . . 1 2 1 . 2 2 . . . . 2 1 3 2 Low Security (%) 59 | 100 100 100 24 100 . 100 52 100 100 75 . . . . 74 100 93 . . . . 98 37 49 100 45 26 . . . . 21 . 68 . Level 1 31 | . . . 75 . . . 37 . . 24 . . . . 25 . 6 . . . . 1 55 50 . 1 63 . . . . 31 100 3 . Level 2 7 | . . . . . . . 10 . . . . . . . . . . . . . . . 6 . . 52 9 . . . . 46 . 4 100 Level 3 . | . . . . . . . . . . . . . . . . . . . . . . . . . . . . . . . . . . 23 . Level 4 . | . . . . . . . . . . . . . . . . . . . . . . . . . . . . . . . . . . . . Level 5 . | . . . . . . . . . . . . . . . . . . . . . . . . . . . . . . . . . . . . High Security . | . . . . . . . . . . . . . . . . . . . . . . . . . . . . . . . . . . . . Max Security . | . . . . . . . . . . . . . . . . . . . . . . . . . . . . . . . . . . . . Peak Influence 953 | 15 140 70 375 130 . 126 487 176 35 307 . . . . 331 129 275 . . . . 201 433 277 177 684 489 . . . . 677 392 953 564 Initial 517 | . . 16 . 94 . . . 175 2 . . . . . . 97 62 . . . . 42 42 171 66 5 297 . . . . . 375 189 517 Average 183 | 4 56 14 232 52 . 41 203 89 2 117 . . . . 108 104 44 . . . . 92 244 200 101 347 277 . . . . 398 340 329 493 Influence Increases 17005 | 30 505 175 1102 320 6 296 1436 29 63 873 100 155 20 160 662 92 467 99 127 . 278 383 856 378 289 1185 786 427 396 1359 276 1332 414 1532 397 Destroy 0b10 Robot/C 8760 | . 320 140 620 260 . 160 880 . . 420 100 80 20 140 380 . 220 80 100 . 180 140 400 160 80 380 380 320 280 840 220 660 120 620 60 Destroy 0b10 Robot/NC 735 | 30 55 5 120 20 5 20 110 . . 45 . 5 . . 25 . 30 . . . . 10 20 10 40 20 20 . . 20 . 50 15 50 10 Destroy Leader 1622 | . 56 30 178 40 . 40 220 . . 132 . 10 . 20 122 . 70 10 20 . 20 20 32 . . 82 112 30 30 . 40 116 34 148 10 Allied During Kill 2610 | . . . . . 1 40 35 . . 183 . . . . . . 10 9 7 . 78 7 294 170 120 456 143 47 86 484 16 97 . 315 12 Successful Hack 257 | . 35 . 44 . . . 29 20 . 24 . . . . 48 . 32 . . . . 16 7 . . . . . . . . . . . 2 Disable Machine 645 | . 30 . 45 . . 15 30 . . 30 . . . . 15 . 60 . . . . 45 30 . 15 45 45 . . . . 60 135 . 45 Anti-Garrison Action 150 | . . . . . . . . . . . . . . . . . . . . . . . . . . 150 . . . . . . . . . Destroy Structure 1641 | . 9 . 50 . . 21 42 9 63 9 . . . . 72 92 45 . . . . 130 58 38 34 52 86 . . . . 334 110 324 63 Partial Spotted 15 | . . . . . . . . . . . . . . . . . . . . . . . . . . . . . . . . . . 15 . Lose Combat Pursuer 570 | . . . 45 . . . 90 . . 30 . 60 . . . . . . . . . 15 15 . . . . 30 . 15 . 15 . 60 195 Influence Decreases 16441 | 30 461 219 860 513 55 296 1050 409 69 575 398 128 47 160 384 281 296 327 159 . 210 365 636 517 439 594 909 706 500 384 1353 663 746 948 754 Entered New Map 3764 | . . 28 . 148 49 . . 211 4 . 111 . 27 . . 181 27 97 7 . . 26 44 135 101 12 311 180 40 102 1077 . 294 148 404 Time Decay 10139 | 30 461 191 680 365 6 282 613 198 65 400 287 128 20 160 364 80 269 230 132 . 148 329 562 222 278 172 518 526 440 132 256 503 452 470 170 Lost Part 554 | . . . 30 . . 14 120 . . . . . . . . . . . . . . 10 10 . . . . . 20 . . 30 . 160 160 Lost Ally 1587 | . . . . . . . 70 . . 175 . . . . 20 20 . . 20 . 62 . 20 160 60 410 80 . . 150 20 130 . 170 20 Purge Threat 397 | . . . 150 . . . 247 . . . . . . . . . . . . . . . . . . . . . . . . . . . . Squads Dispatched 73 | . 2 . 2 . . . 10 1 . 5 . . . . 8 . 9 . . . . 2 1 . . 8 4 . 1 . . 5 2 9 4 Investigation 10 | . . . 1 . . . 1 . . 2 . . . . 2 . 2 . . . . . . . . . . . . . . . . 1 1 Extermination 26 | . . . . . . . . 1 . 2 . . . . 4 . 4 . . . . 1 . . . . 4 . . . . 3 2 4 1 Reinforcement 30 | . 2 . 1 . . . 9 . . 1 . . . . 2 . 3 . . . . 1 1 . . 4 . . . . . 2 . 3 1 Assault 6 | . . . . . . . . . . . . . . . . . . . . . . . . . . 3 . . 1 . . . . 1 1 Garrison 1 | . . . . . . . . . . . . . . . . . . . . . . . . . . 1 . . . . . . . . . Intercept . | . . . . . . . . . . . . . . . . . . . . . . . . . . . . . . . . . . . . Searches Triggered . | . . . . . . . . . . . . . . . . . . . . . . . . . . . . . . . . . . . . Construction Impeded 6 | . . . . . . . 1 . . . . . . . . . 1 . . . . . 1 . . 1 . . . . . 1 . 1 . Haulers Reinforced 1 | . . . . . . . . . . . . . . . . . . . . . . . . . . 1 . . . . . . . . . Active Scanning Responses . | . . . . . . . . . . . . . . . . . . . . . . . . . . . . . . . . . . . . Cargo Convoy Interrupts . | . . . . . . . . . . . . . . . . . . . . . . . . . . . . . . . . . . . . Stealth | -11 -10 -10 -9 -9 -9 -8 -8 -7 -7 -7 -7 -7 -7 -6 -6 -6 -6 -6 -6 -6 -5 -5 -5 -5 -5 -5 -4 -4 -4 -4 -3 -3 -3 -2 -2 --------- Run | Yrd Mat Min Mat Min Exi Min Mat Fac Was Fac Low Low Dat Pro Fac Was Fac Low Low Zio Pro Fac Ext Cet Arc Hub Fac Upp Upp War Pro Res Qua Res Tes Distress Signals 33 | . 4 . 5 . . . 3 . . 1 . . . . 2 . . . . . . . 3 2 . 2 2 . . 1 . 3 . 5 . Communications Jammed 39 | . . . . . . . . . . . . . . . . . . . . . . . . . . . . . . . . 11 6 21 1 Distress Signals 39 | . . . . . . . . . . . . . . . . . . . . . . . . . . . . . . . . 11 6 21 1 Times Spotted 588 | . 33 8 56 13 . 8 69 . 6 26 5 8 4 7 31 6 16 1 2 . 6 8 20 9 12 10 22 14 16 42 9 41 9 47 24 Peak Tracking Total 16 | . 7 6 9 4 . 3 5 . 3 5 3 4 1 5 5 4 5 3 2 . 5 5 4 5 1 4 5 4 7 9 4 5 3 7 16 Tactical Retreats 22 | . . . 3 . . . 3 . . 2 . 2 . . . . . . . . . 1 1 . . . . 1 . 1 . 1 . 4 3 Traps | -11 -10 -10 -9 -9 -9 -8 -8 -7 -7 -7 -7 -7 -7 -6 -6 -6 -6 -6 -6 -6 -5 -5 -5 -5 -5 -5 -4 -4 -4 -4 -3 -3 -3 -2 -2 ------- Run | Yrd Mat Min Mat Min Exi Min Mat Fac Was Fac Low Low Dat Pro Fac Was Fac Low Low Zio Pro Fac Ext Cet Arc Hub Fac Upp Upp War Pro Res Qua Res Tes Traps Triggered 6 | . . . 1 . . . 2 1 . . . . . . 1 . . . . . . . 1 . . . . . . . . . . . . Indirectly . | . . . . . . . . . . . . . . . . . . . . . . . . . . . . . . . . . . . . Trap Hack Attempts . | . . . . . . . . . . . . . . . . . . . . . . . . . . . . . . . . . . . . Triggered . | . . . . . . . . . . . . . . . . . . . . . . . . . . . . . . . . . . . . Disarmed . | . . . . . . . . . . . . . . . . . . . . . . . . . . . . . . . . . . . . Reprogrammed . | . . . . . . . . . . . . . . . . . . . . . . . . . . . . . . . . . . . . Reused . | . . . . . . . . . . . . . . . . . . . . . . . . . . . . . . . . . . . . Traps Extracted . | . . . . . . . . . . . . . . . . . . . . . . . . . . . . . . . . . . . . Installed . | . . . . . . . . . . . . . . . . . . . . . . . . . . . . . . . . . . . . Triggered . | . . . . . . . . . . . . . . . . . . . . . . . . . . . . . . . . . . . . Objects Rigged 1 | . . . 1 . . . . . . . . . . . . . . . . . . . . . . . . . . . . . . . . Machines | -11 -10 -10 -9 -9 -9 -8 -8 -7 -7 -7 -7 -7 -7 -6 -6 -6 -6 -6 -6 -6 -5 -5 -5 -5 -5 -5 -4 -4 -4 -4 -3 -3 -3 -2 -2 ---------- Run | Yrd Mat Min Mat Min Exi Min Mat Fac Was Fac Low Low Dat Pro Fac Was Fac Low Low Zio Pro Fac Ext Cet Arc Hub Fac Upp Upp War Pro Res Qua Res Tes Machines Disabled 53 | . 3 . 3 . . 1 2 . . 2 . . 1 . 1 . 4 . . . 3 3 3 . 1 4 3 . 1 1 . 4 9 . 4 Max in Single Turn 3 | . 1 . 3 . . 1 1 . . 1 . . 1 . 1 . 1 . . . 3 2 . . . 1 1 . 1 1 . 1 1 . 1 Garrison Access 8 | . . . . . . . . 1 . 2 . . . . 1 . 2 . . . . . . . . 1 . . . . . . 1 . . Network Hub 1 | . . . . . . . . . . . . . . . . . . . . . . . . . . 1 . . . . . . . . . Energy Cycler 1 | . . . . . . . . . . . . . . . . . . . . . . . 1 . . . . . . . . . . . . Machines Repaired . | . . . . . . . . . . . . . . . . . . . . . . . . . . . . . . . . . . . . Machines Dismantled . | . . . . . . . . . . . . . . . . . . . . . . . . . . . . . . . . . . . . Machines Sabotaged . | . . . . . . . . . . . . . . . . . . . . . . . . . . . . . . . . . . . . Overloaded Fab Kills . | . . . . . . . . . . . . . . . . . . . . . . . . . . . . . . . . . . . . Hacking | -11 -10 -10 -9 -9 -9 -8 -8 -7 -7 -7 -7 -7 -7 -6 -6 -6 -6 -6 -6 -6 -5 -5 -5 -5 -5 -5 -4 -4 -4 -4 -3 -3 -3 -2 -2 --------- Run | Yrd Mat Min Mat Min Exi Min Mat Fac Was Fac Low Low Dat Pro Fac Was Fac Low Low Zio Pro Fac Ext Cet Arc Hub Fac Upp Upp War Pro Res Qua Res Tes Machines Accessed 118 | . 6 . 16 . 5 . 14 5 . 9 . 1 3 . 21 . 15 . 2 . . 2 1 . . 1 2 1 1 6 . 1 4 1 1 Terminals 51 | . 5 . 11 . . . 9 3 . 4 . . . . 9 . 9 . . . . . 1 . . . . . . . . . . . . Fabricators 10 | . . . . . . . . . . 1 . . . . 4 . 2 . . . . 1 . . . . 2 . . . . . . . . Repair Stations 12 | . 1 . 2 . . . . . . 1 . . . . 3 . 2 . . . . . . . . . . . . . . . 2 . 1 Recycling Units 4 | . . . 1 . . . 2 . . . . . . . 1 . . . . . . . . . . . . . . . . . . . . Scanalyzers 10 | . . . 2 . . . 2 1 . 1 . . . . 2 . . . . . . . . . . . . . . . . . 1 1 . Garrison Access 12 | . . . . . . . 1 1 . 2 . . . . 2 . 2 . . . . 1 . . . 1 . . . . . 1 1 . . Total Hacks 331 | . 26 . 47 . 28 . 37 11 . 13 . 1 24 . 49 . 44 . 7 . . 4 2 . . 1 6 1 1 14 . 1 11 2 1 Successful 249 | . 16 . 37 . 28 . 22 7 . 5 . 1 24 . 35 . 38 . 7 . . 3 1 . . . 3 1 1 14 . . 5 . 1 Failed 78 | . 10 . 9 . . . 14 4 . 8 . . . . 13 . 5 . . . . 1 1 . . 1 3 . . . . 1 6 2 . Catastrophic 12 | . . . 1 . . . 1 . . 4 . . . . 2 . . . . . . . . . . 1 1 . . . . 1 . 1 . Database Lockouts 4 | . . . 1 . . . 1 . . . . . . . 1 . 1 . . . . . . . . . . . . . . . . . . Manual 229 | . 16 . 26 . 1 . 23 6 . 1 . . . . 24 . 21 . . 1 . 13 8 1 . 14 23 . . . . 28 8 12 3 Terminals 140 | . 22 . 29 . . . 24 8 . 5 . . . . 25 . 25 . . . . . 2 . . . . . . . . . . . . Fabricators 29 | . . . . . . . . . . 2 . . . . 11 . 7 . . . . 3 . . . . 6 . . . . . . . . Repair Stations 31 | . 4 . 7 . . . . . . 1 . . . . 6 . 10 . . . . . . . . . . . . . . . 2 . 1 Recycling Units 9 | . . . 4 . . . 3 . . . . . . . 2 . . . . . . . . . . . . . . . . . . . . Scanalyzers 29 | . . . 7 . . . 7 2 . 3 . . . . 3 . . . . . . . . . . . . . . . . . 5 2 . Garrison Access 17 | . . . . . . . 3 1 . 2 . . . . 2 . 2 . . . . 1 . . . 1 . . . . . 1 4 . . Terminal Hacks 122 | . 3 . 9 . 28 . 5 3 . . . 1 24 . 10 . 15 . 7 . . . 1 . . . . 1 1 14 . . . . . Record 47 | . . . . . 27 . . . . . . . 6 . . . . . 6 . . . . . . . . . . 8 . . . . . Part Schematic 12 | . . . . . . . . . . . . . 9 . 1 . 2 . . . . . . . . . . . . . . . . . . Robot Schematic 6 | . . . . . . . . . . . . . 6 . . . . . . . . . . . . . . . . . . . . . . Robot Analysis 1 | . . . . . . . . . . . . . . . . . 1 . . . . . . . . . . . . . . . . . . Prototype ID Bank 11 | . 1 . 2 . . . . . . . . . 3 . . . 1 . . . . . . . . . . . . 4 . . . . . Open Door 7 | . . . . . . . . . . . . 1 . . . . . . 1 . . . 1 . . . . 1 1 2 . . . . . Level Access Points 2 | . . . . . . . . . . . . . . . 1 . 1 . . . . . . . . . . . . . . . . . . Branch Access Points 3 | . . . . . . . . 1 . . . . . . 1 . 1 . . . . . . . . . . . . . . . . . . Terminal Index 5 | . . . 1 . . . 1 1 . . . . . . 1 . 1 . . . . . . . . . . . . . . . . . . Fabricator Index 1 | . . . . . . . . . . . . . . . . . 1 . . . . . . . . . . . . . . . . . . Repair Station Index 2 | . . . . . . . . . . . . . . . 1 . 1 . . . . . . . . . . . . . . . . . . Scanalyzer Index 1 | . . . . . . . . . . . . . . . . . 1 . . . . . . . . . . . . . . . . . . Alert Level 4 | . . . 1 . . . 2 . . . . . . . 1 . . . . . . . . . . . . . . . . . . . . Unreport Threat 3 | . . . 1 . . . 2 . . . . . . . . . . . . . . . . . . . . . . . . . . . . Locate Traps 3 | . 1 . 1 . . . . . . . . . . . . . 1 . . . . . . . . . . . . . . . . . . Extermination Status 1 | . . . . . . . . . . . . . . . 1 . . . . . . . . . . . . . . . . . . . . Recall Extermination 4 | . . . . . . . . . . . . . . . 2 . 2 . . . . . . . . . . . . . . . . . . Recall Reinforcements 1 | . . . . . . . . . . . . . . . . . 1 . . . . . . . . . . . . . . . . . . Hauler Manifests 3 | . . . 2 . . . . . . . . . . . 1 . . . . . . . . . . . . . . . . . . . . Registered Components 4 | . 1 . 1 . . . . 1 . . . . . . . . 1 . . . . . . . . . . . . . . . . . . Proto ID Catalog 1 | . . . . . 1 . . . . . . . . . . . . . . . . . . . . . . . . . . . . . . Fabricator Hacks 16 | . . . . . . . . . . 1 . . . . 5 . 5 . . . . 2 . . . . 3 . . . . . . . . Network Status 2 | . . . . . . . . . . . . . . . 1 . . . . . . . . . . . 1 . . . . . . . . Load Schematic 9 | . . . . . . . . . . 1 . . . . 3 . 3 . . . . 1 . . . . 1 . . . . . . . . Build 5 | . . . . . . . . . . . . . . . 1 . 2 . . . . 1 . . . . 1 . . . . . . . . Repair Station Hacks 26 | . 4 . 6 . . . . . . . . . . . 6 . 9 . . . . . . . . . . . . . . . . . 1 Scan Component 14 | . 2 . 3 . . . . . . . . . . . 3 . 5 . . . . . . . . . . . . . . . . . 1 Repair 12 | . 2 . 3 . . . . . . . . . . . 3 . 4 . . . . . . . . . . . . . . . . . . Recycling Unit Hacks 4 | . . . 2 . . . . . . . . . . . 2 . . . . . . . . . . . . . . . . . . . . Process 1 | . . . . . . . . . . . . . . . 1 . . . . . . . . . . . . . . . . . . . . Retrieve Matter 1 | . . . . . . . . . . . . . . . 1 . . . . . . . . . . . . . . . . . . . . Retrieve Components 2 | . . . 2 . . . . . . . . . . . . . . . . . . . . . . . . . . . . . . . . Scanalyzer 21 | . . . 6 . . . 7 1 . 1 . . . . 2 . . . . . . . . . . . . . . . . . 4 . . Insert Component 9 | . . . 3 . . . 3 . . . . . . . 1 . . . . . . . . . . . . . . . . . 2 . . Analyze 5 | . . . 2 . . . 3 . . . . . . . . . . . . . . . . . . . . . . . . . . . . Retrieve Study 7 | . . . 1 . . . 1 1 . 1 . . . . 1 . . . . . . . . . . . . . . . . . 2 . . Garrison Access Hacks 7 | . . . . . . . . 1 . 2 . . . . 1 . 2 . . . . . . . . . . . . . . . 1 . . Seal Access 7 | . . . . . . . . 1 . 2 . . . . 1 . 2 . . . . . . . . . . . . . . . 1 . . Unauthorized Hacks 53 | . 9 . 14 . . . 10 2 . 1 . . . . 9 . 7 . . . . 1 . . . . . . . . . . . . . Terminals 44 | . 9 . 14 . . . 9 2 . . . . . . 5 . 5 . . . . . . . . . . . . . . . . . . Track 4 | . . . 2 . . . 2 . . . . . . . . . . . . . . . . . . . . . . . . . . . . Assimilate 5 | . . . . . . . 1 . . . . . . . 2 . 2 . . . . . . . . . . . . . . . . . . Botnet 14 | . 3 . 4 . . . 2 1 . . . . . . 2 . 2 . . . . . . . . . . . . . . . . . . Detonate 1 | . . . 1 . . . . . . . . . . . . . . . . . . . . . . . . . . . . . . . . Disrupt 2 | . . . 1 . . . 1 . . . . . . . . . . . . . . . . . . . . . . . . . . . . Operators 6 | . 1 . 1 . . . 1 1 . . . . . . 1 . 1 . . . . . . . . . . . . . . . . . . Skim 12 | . 5 . 5 . . . 2 . . . . . . . . . . . . . . . . . . . . . . . . . . . . Fabricators 8 | . . . . . . . . . . 1 . . . . 4 . 2 . . . . 1 . . . . . . . . . . . . . Report 1 | . . . . . . . . . . . . . . . 1 . . . . . . . . . . . . . . . . . . . . Prioritize 2 | . . . . . . . . . . . . . . . . . 1 . . . . 1 . . . . . . . . . . . . . Fabnet 1 | . . . . . . . . . . . . . . . 1 . . . . . . . . . . . . . . . . . . . . Recompile 4 | . . . . . . . . . . 1 . . . . 2 . 1 . . . . . . . . . . . . . . . . . . Repair Stations . | . . . . . . . . . . . . . . . . . . . . . . . . . . . . . . . . . . . . Recycling Units 1 | . . . . . . . 1 . . . . . . . . . . . . . . . . . . . . . . . . . . . . Mask 1 | . . . . . . . 1 . . . . . . . . . . . . . . . . . . . . . . . . . . . . Scanalyzers . | . . . . . . . . . . . . . . . . . . . . . . . . . . . . . . . . . . . . Garrison Access . | . . . . . . . . . . . . . . . . . . . . . . . . . . . . . . . . . . . . Data Cores Recovered 3 | . 1 . . . . . . . . . . . . . . . . . . . . 1 . . . 1 . . . . . . . . . Used 1 | . 1 . . . . . . . . . . . . . . . . . . . . . . . . . . . . . . . . . . Hacking Detections 79 | . 5 . 14 . . . 12 3 . 7 . . . . 16 . 12 . . . . 2 1 . . 1 2 . . . . 1 2 1 . Full Trace Events 2 | . . . . . . . . . . 1 . . . . . . 1 . . . . . . . . . . . . . . . . . . Feedback Events . | . . . . . . . . . . . . . . . . . . . . . . . . . . . . . . . . . . . . Feedback Blocked . | . . . . . . . . . . . . . . . . . . . . . . . . . . . . . . . . . . . . Robot Schematics Acquired 9 | . . . . . . . . . . . . . 6 . . . . . . 3 . . . . . . . . . . . . . . . Robots Built . | . . . . . . . . . . . . . . . . . . . . . . . . . . . . . . . . . . . . Authchips . | . . . . . . . . . . . . . . . . . . . . . . . . . . . . . . . . . . . . Time . | . . . . . . . . . . . . . . . . . . . . . . . . . . . . . . . . . . . . Total Robot Build Rating . | . . . . . . . . . . . . . . . . . . . . . . . . . . . . . . . . . . . . Part Schematics Acquired 55 | . . . 2 . . . 3 . . . . . 9 . 1 . 2 . . 14 . 12 . . . . . . . . . . 11 . 1 Parts Built 5 | . . . . . . . . . . . . . . . 1 . 2 . . . . 1 . . . . 1 . . . . . . . . Authchips 4 | . . . . . . . . . . . . . . . 1 . 1 . . . . 1 . . . . 1 . . . . . . . . Time 262 | . . . . . . . . . . . . . . . 84 . 68 . . . . 26 . . . . 84 . . . . . . . . Total Part Build Rating 30 | . . . . . . . . . . . . . . . 6 . 12 . . . . 6 . . . . 6 . . . . . . . . Part Studies Acquired 7 | . . . 1 . . . 1 1 . 1 . . . . 1 . . . . . . . . . . . . . . . . . 2 . . Parts Repaired 12 | . 2 . 3 . . . . . . . . . . . 3 . 4 . . . . . . . . . . . . . . . . . . Time 658 | . 52 . 115 . . . . . . . . . . . 162 . 329 . . . . . . . . . . . . . . . . . . Parts Recycled . | . . . . . . . . . . . . . . . . . . . . . . . . . . . . . . . . . . . . Recycled Matter 183 | . . . . . . . . . . . . . . . 183 . . . . . . . . . . . . . . . . . . . . Retrieved Matter 183 | . . . . . . . . . . . . . . . 183 . . . . . . . . . . . . . . . . . . . . Retrieved Components 15 | . . . 15 . . . . . . . . . . . . . . . . . . . . . . . . . . . . . . . . Parts Scanalyzed 5 | . . . 2 . . . 3 . . . . . . . . . . . . . . . . . . . . . . . . . . . . Part Schematics Acquired 5 | . . . 2 . . . 3 . . . . . . . . . . . . . . . . . . . . . . . . . . . . Parts Damaged . | . . . . . . . . . . . . . . . . . . . . . . . . . . . . . . . . . . . . Bothacking | -11 -10 -10 -9 -9 -9 -8 -8 -7 -7 -7 -7 -7 -7 -6 -6 -6 -6 -6 -6 -6 -5 -5 -5 -5 -5 -5 -4 -4 -4 -4 -3 -3 -3 -2 -2 ------------ Run | Yrd Mat Min Mat Min Exi Min Mat Fac Was Fac Low Low Dat Pro Fac Was Fac Low Low Zio Pro Fac Ext Cet Arc Hub Fac Upp Upp War Pro Res Qua Res Tes Used RIF Installer . | . . . . . . . . . . . . . . . . . . . . . . . . . . . . . . . . . . . . Robots Hacked 18 | . . . . . . . 1 . . . . . . . . . . . . 1 . 1 3 . 7 1 1 1 . 1 . 1 . . . Non-combat 1 | . . . . . . . 1 . . . . . . . . . . . . . . . . . . . . . . . . . . . . Combat 17 | . . . . . . . . . . . . . . . . . . . . 1 . 1 3 . 7 1 1 1 . 1 . 1 . . . Robot Hacks Applied 15 | . . . . . . . 1 . . . . . . . . . . . . 1 . 1 1 . 8 . 1 1 . . . 1 . . . parse_system 15 | . . . . . . . 1 . . . . . . . . . . . . 1 . 1 1 . 8 . 1 1 . . . 1 . . . Relay Couplers Released 6 | . . . . . . . . . . 3 . . . . . . . . . . . . . . . 1 . . . . . . 2 . . Machine Destruction 3 | . . . . . . . . . . . . . . . . . . . . . . . . . . 1 . . . . . . 2 . . Programmers 3 | . . . . . . . . . . 3 . . . . . . . . . . . . . . . . . . . . . . . . . Fabnet Peak Effective % 3 | . . . . . . . . . . . . . . . . . . . . . 3 3 3 3 3 3 1 1 1 1 . . . . . Autooverrided 4 | . . . . . . . . . . . . . . . . . . . . . . . 2 . . 1 . . . 1 . . . . . Robots Rewired 30 | . . . . . 4 . . . . . . . . . . . . . . . . . 17 . . . . 1 2 5 . . . . 1 Allies Hacked 6 | . . . . . . . . . . 2 . . . . . . . . . . . . . . . . . . . 3 . 1 . . . Hacks Repelled . | . . . . . . . . . . . . . . . . . . . . . . . . . . . . . . . . . . . . Allies | -11 -10 -10 -9 -9 -9 -8 -8 -7 -7 -7 -7 -7 -7 -6 -6 -6 -6 -6 -6 -6 -5 -5 -5 -5 -5 -5 -4 -4 -4 -4 -3 -3 -3 -2 -2 -------- Run | Yrd Mat Min Mat Min Exi Min Mat Fac Was Fac Low Low Dat Pro Fac Was Fac Low Low Zio Pro Fac Ext Cet Arc Hub Fac Upp Upp War Pro Res Qua Res Tes Total Allies 115 | . . . . 1 4 . 1 . 18 . . . . . 2 1 2 . 2 8 . 3 33 5 . 2 3 1 2 6 . 10 . 10 1 Largest Group 32 | . . . . 1 4 4 3 . 18 14 . . . . 1 1 2 1 3 8 8 3 32 32 26 25 5 2 4 8 1 5 . 8 1 Highest-Rated Group 1440 | . . . . 31 81 58 50 . 434 336 . . . . 26 31 52 26 88 256 256 198 1338 1440 1260 1248 361 216 290 512 158 418 . 934 146 Highest-Rated Ally 167 | . . . . 31 31 21 21 . 35 31 . . . . 26 31 26 26 31 40 40 85 149 149 96 142 167 167 163 163 158 103 . 122 146 Zionite Dispatches 18 | . . . . . . . . . . . . . . . . . . . . . . 2 3 . . 1 2 . . . . 5 . 5 . Heavy 5 | . . . . . . . . . . . . . . . . . . . . . . 1 1 . . . 1 . . . . 1 . 1 . Light 4 | . . . . . . . . . . . . . . . . . . . . . . . . . . . . . . . . 2 . 2 . Fire 1 | . . . . . . . . . . . . . . . . . . . . . . . 1 . . . . . . . . . . . . Hacker 1 | . . . . . . . . . . . . . . . . . . . . . . . 1 . . . . . . . . . . . . Hero 1 | . . . . . . . . . . . . . . . . . . . . . . . . . . . 1 . . . . . . . . Thermal Resupply 2 | . . . . . . . . . . . . . . . . . . . . . . . . . . . . . . . . 1 . 1 . Offense Resupply 1 | . . . . . . . . . . . . . . . . . . . . . . 1 . . . . . . . . . . . . . Defense Resupply 1 | . . . . . . . . . . . . . . . . . . . . . . . . . . . . . . . . . . 1 . Infowar Resupply 1 | . . . . . . . . . . . . . . . . . . . . . . . . . . 1 . . . . . . . . . Zionite Resupply 1 | . . . . . . . . . . . . . . . . . . . . . . . . . . . . . . . . 1 . . . Total Orders 68 | . . . . . . . 1 . . . . . . . 1 . 6 12 8 . 7 14 1 3 . 6 . . . 1 . 4 . 4 . STAY 12 | . . . . . . . 1 . . . . . . . 1 . 2 2 . . . . 1 2 . 1 . . . . . 2 . . . ROAM 12 | . . . . . . . . . . . . . . . . . . 1 3 . 2 5 . . . 1 . . . . . . . . . FOLLOW 11 | . . . . . . . . . . . . . . . . . 2 2 . . . 1 . 1 . 3 . . . . . . . 2 . AID 1 | . . . . . . . . . . . . . . . . . . . . . . . . . . . . . . 1 . . . . . DROP 6 | . . . . . . . . . . . . . . . . . . . . . . 1 . . . 1 . . . . . 2 . 2 . RETURN 26 | . . . . . . . . . . . . . . . . . 2 7 5 . 5 7 . . . . . . . . . . . . . Ally Attacks 888 | . . . . . . 18 21 . 83 91 . . . . . 15 11 1 31 . 44 20 44 57 39 111 40 26 28 82 9 54 . 51 12 Total Damage 33069 | . . . . . . 197 325 . 2091 1387 . . . . . 168 193 23 408 . 812 304 2296 2261 1002 3568 2096 1785 1862 5353 741 2750 . 2684 763 Kills 210 | . . . . . . 3 6 . 4 14 . . . . . . 3 1 4 . 6 4 18 11 4 22 18 16 12 31 5 14 . 14 . Allies Corrupted 11 | . . . . . . . . . . 1 . . . . . . . . . . . . 2 . . 2 3 . . 1 . . . 1 1 Allies Melted 2 | . . . . . . . . . . . . . . . . . . . . . . . 1 . . 1 . . . . . . . . . Intel | -11 -10 -10 -9 -9 -9 -8 -8 -7 -7 -7 -7 -7 -7 -6 -6 -6 -6 -6 -6 -6 -5 -5 -5 -5 -5 -5 -4 -4 -4 -4 -3 -3 -3 -2 -2 ------- Run | Yrd Mat Min Mat Min Exi Min Mat Fac Was Fac Low Low Dat Pro Fac Was Fac Low Low Zio Pro Fac Ext Cet Arc Hub Fac Upp Upp War Pro Res Qua Res Tes Active Infowar (turns) 33911 | 2 1645 784 370 . . . 3926 408 644 946 781 1740 162 731 1622 3 1657 489 982 1969 894 795 1645 479 609 171 1424 1468 1094 1205 647 2004 1125 1180 310 Optics 9587 | . . . . . . . . . . . . . . . . . . . . . . . . . . . 958 1468 1094 801 647 2004 1125 1180 310 Sensors 8642 | . . . . . . . . . . . . . . . . . . . . . . . . . . . 1234 1338 982 803 496 1674 1067 772 276 IFF 7897 | . . . . . . . . . . . . . . . . . 1 487 964 1966 894 704 1622 479 609 171 . . . . . . . . . Traps 2 | . . . . . . . . . . . . . . . . . . . . . . 2 . . . . . . . . . . . . . Seismic 20624 | 2 1645 784 370 . . . 3924 408 644 946 781 1740 162 731 1622 3 1657 489 982 1967 859 763 131 14 . . . . . . . . . . . T.N.C. 2 | . . . . . . . 2 . . . . . . . . . . . . . . . . . . . . . . . . . . . . Cloaking 2 | . . . . . . . . . . . . . . . . . . . . . . . . . . . . . . . . 2 . . . Jamming 3825 | . . . . . . . . . . . . . . . . . . . . . . . . . . . . 81 . 94 . 1568 1081 728 273 ECM 2 | . . . . . . . . . . . . . . 2 . . . . . . . . . . . . . . . . . . . . . Robot Analysis Total 1 | . . . . . . . . . . . . . . . . . 1 . . . . . . . . . . . . . . . . . . Derelict Logs Recovered 16 | . . 1 . 2 . . . . . . 2 1 . 1 . . . . 2 2 2 . . . . . . 2 1 . . . . . . Drone Launches 30 | . . . . . . . . . . . . . . . . . 4 6 5 2 7 6 . . . . . . . . . . . . . Drone Recoveries 28 | . . . . . . . . . . . . . . . . . 2 6 5 . 7 8 . . . . . . . . . . . . . Zionite Intel Received 11 | . . . . . . . . . . . . . . . . . . . . . . 2 . . . 2 3 . . . . 2 2 . . Guard Positions 1 | . . . . . . . . . . . . . . . . . . . . . . . . . . . . . . . . . 1 . . Component Stockpiles 2 | . . . . . . . . . . . . . . . . . . . . . . . . . . . 1 . . . . 1 . . . Component Schematics 1 | . . . . . . . . . . . . . . . . . . . . . . 1 . . . . . . . . . . . . . Prototype Schematics 1 | . . . . . . . . . . . . . . . . . . . . . . . . . . . . . . . . . 1 . . Trap Installations 3 | . . . . . . . . . . . . . . . . . . . . . . 1 . . . 1 1 . . . . . . . . Active Terminals 1 | . . . . . . . . . . . . . . . . . . . . . . . . . . . . . . . . 1 . . . Depthwide Sectors/0 1 | . . . . . . . . . . . . . . . . . . . . . . . . . . . 1 . . . . . . . . Depthwide Sectors/-1 1 | . . . . . . . . . . . . . . . . . . . . . . . . . . 1 . . . . . . . . . Exploration | -11 -10 -10 -9 -9 -9 -8 -8 -7 -7 -7 -7 -7 -7 -6 -6 -6 -6 -6 -6 -6 -5 -5 -5 -5 -5 -5 -4 -4 -4 -4 -3 -3 -3 -2 -2 ------------- Run | Yrd Mat Min Mat Min Exi Min Mat Fac Was Fac Low Low Dat Pro Fac Was Fac Low Low Zio Pro Fac Ext Cet Arc Hub Fac Upp Upp War Pro Res Qua Res Tes Turns Passed 44303 | 86 1672 784 3389 1124 924 938 5387 408 756 1151 827 1804 843 796 2444 178 1850 489 996 1969 1030 797 1665 479 609 402 1426 1468 1094 1205 647 2004 1125 1180 357 Spaces Moved 26069 | 44 730 450 1713 649 560 538 2447 286 460 742 711 1351 496 642 1636 113 1130 314 610 1481 481 379 675 226 248 215 872 1007 782 818 488 1173 677 702 223 Core 80 | 16 1 . . . . . . . . . . . . . . . . . . . . . . . . . . . . . . . . . 63 Treads 6463 | . 702 450 1713 649 560 538 1851 . . . . . . . . . . . . . . . . . . . . . . . . . . . . Legs 19526 | 28 27 . . . . . 596 286 460 742 711 1351 496 642 1636 113 1130 314 610 1481 481 379 675 226 248 215 872 1007 782 818 488 1173 677 702 160 Wheels . | . . . . . . . . . . . . . . . . . . . . . . . . . . . . . . . . . . . . Hover . | . . . . . . . . . . . . . . . . . . . . . . . . . . . . . . . . . . . . Flight . | . . . . . . . . . . . . . . . . . . . . . . . . . . . . . . . . . . . . Fastest Speed 50 | 50 120 160 160 160 160 155 120 128 126 108 108 105 110 111 111 116 108 126 126 126 126 121 140 140 140 140 125 125 125 115 115 108 105 105 50 Average Speed 132 | 105 175 160 163 160 160 160 157 128 127 118 108 109 110 111 115 116 119 126 126 126 126 133 188 140 140 140 126 125 125 115 115 110 106 108 94 Slowest Speed 450 | 120 250 160 240 160 160 320 450 128 128 126 108 110 113 111 119 116 204 126 126 126 126 360 250 140 140 140 190 125 125 125 115 115 108 113 330 Overloaded Moves . | . . . . . . . . . . . . . . . . . . . . . . . . . . . . . . . . . . . . Propulsion Burnouts . | . . . . . . . . . . . . . . . . . . . . . . . . . . . . . . . . . . . . Robots Hopped 1 | . . . . . . . . . . . . . . . . . . . . . . . . . . 1 . . . . . . . . . Potential Cave-ins 7 | . . . . . . . . . . . . . . . . . . . . . . . . . . . . . . 4 . 3 . . . Cave-ins Triggered 1 | . . . . . . . . . . . . . . . . . . . . . . . . . . . . . . . . 1 . . . Teleports 1 | . . . . . . . . . . . . . . . . . . . . . . . . . . . . . . . . . . 1 . Exploration Rate (%) 66 | 3 97 91 97 98 91 95 89 14 95 24 88 85 81 84 43 81 29 57 90 89 95 14 83 64 89 19 23 93 78 89 77 28 67 22 23 Regions Visited 35 Branch Regions 22 Pre-discovered Areas 17 | . . . 1 1 1 . . . . . . . 1 . . . . . 1 2 . . . . . 5 5 . . . . . . . . Known Exits Taken 18 | . . 1 1 . . 1 1 . . 1 . . . . . . 1 . 1 . 1 1 . . . 1 1 1 1 1 1 1 1 1 . Unknown Exits Taken 13 | 1 1 . . 1 1 . . . . . 1 1 1 1 . . . 1 . 1 . . 1 1 1 . . . . . . . . . . Scrap Searched 36 | . . 1 . 3 . 2 . . . . 2 2 . 5 . . . 3 2 4 4 . . . . . . 2 4 . 2 . . . . Spaces Dug 336 | . 3 . 11 . . . 23 9 . 9 . 1 . 7 33 . 8 20 . . 3 27 7 11 14 4 13 . . 18 . 63 24 23 5 Terrain Destroyed 1467 | . 9 2 48 . . 31 40 9 114 9 . 69 . 20 74 218 46 36 3 . 25 83 9 11 14 4 31 29 7 184 17 156 58 88 23 Melee 68 | . . . . . . . 11 9 . 9 . . . . . . . . . . . 3 7 11 14 4 . . . . . . . . . Projectile 491 | . 9 2 8 . . . . . . . . 2 . 5 60 . 23 2 3 . 5 30 2 . . . 31 29 7 22 17 105 58 55 16 AOE 908 | . . . 40 . . 31 29 . 114 . . 67 . 15 14 218 23 34 . . 20 50 . . . . . . . 162 . 51 . 33 7 Terrain Rammed . | . . . . . . . . . . . . . . . . . . . . . . . . . . . . . . . . . . . . Walls Destroyed . | . . . . . . . . . . . . . . . . . . . . . . . . . . . . . . . . . . . . Machines Disabled . | . . . . . . . . . . . . . . . . . . . . . . . . . . . . . . . . . . . . Actions | -11 -10 -10 -9 -9 -9 -8 -8 -7 -7 -7 -7 -7 -7 -6 -6 -6 -6 -6 -6 -6 -5 -5 -5 -5 -5 -5 -4 -4 -4 -4 -3 -3 -3 -2 -2 --------- Run | Yrd Mat Min Mat Min Exi Min Mat Fac Was Fac Low Low Dat Pro Fac Was Fac Low Low Zio Pro Fac Ext Cet Arc Hub Fac Upp Upp War Pro Res Qua Res Tes Total 33652 | 68 996 485 2073 692 584 574 3645 322 589 935 743 1649 740 692 2028 157 1537 402 826 1580 890 611 1027 366 447 301 1126 1159 872 1052 540 1651 986 980 327 Wait 4546 | . 158 16 138 12 6 2 819 1 86 114 18 262 72 15 189 . 280 79 207 81 394 152 207 82 146 49 126 110 54 87 24 211 224 111 14 Move 26033 | 43 729 449 1712 648 559 537 2446 286 459 741 710 1350 495 641 1636 112 1129 313 609 1480 480 378 674 225 247 212 871 1006 781 817 487 1171 676 701 223 Hop 1 | . . . . . . . . . . . . . . . . . . . . . . . . . . 1 . . . . . . . . . Pick Up 321 | 10 16 . 37 1 . 3 45 10 4 9 . 2 33 1 29 2 11 3 . 4 . 7 2 10 1 8 11 2 3 18 1 15 7 11 5 Fast Attach 84 | 3 2 . 7 . . . 12 . 2 1 . 3 11 . . . 7 . . . . 3 . 3 . 2 6 . . 3 2 4 . 10 3 Attach 136 | 4 4 . 7 . . 3 22 2 . 1 . 2 14 . 11 2 6 . . . . 5 2 . 1 1 7 . 2 10 . 8 . 15 7 Detach 23 | . . . . . 1 . . . . . . . 5 . 1 . 3 . . . . 3 . 1 . . 2 . . 1 . . . 5 1 Swap 636 | . 11 . 25 2 1 6 82 5 19 21 7 12 25 14 39 . 35 4 6 9 9 23 14 14 13 8 42 10 5 12 8 86 19 39 11 Drop 359 | 1 13 . 34 3 . 1 52 9 5 12 . 6 39 2 28 2 18 . . 4 . 8 . 17 1 10 15 2 1 18 3 24 6 18 7 Fire 971 | 7 60 12 100 18 2 18 90 . 12 21 8 12 . 11 90 39 44 3 3 1 5 29 10 . . 2 38 24 10 21 11 127 54 65 24 Melee 216 | . . . . . . . 68 9 2 10 . . 46 . . . . . . 1 2 3 7 14 38 6 1 1 1 . 3 1 . 2 1 Ram 6 | . . . . . . . . . . . . . . . . . . . . . . . . . . . . . . . . . . . 6 Kick 33 | . . . . . . . 2 . . 5 . . . . 5 . 3 . 1 . . . 1 . . 2 7 1 . . . 3 . 3 . Crush 43 | . 3 8 13 8 . 4 7 . . . . . . . . . . . . . . . . . . . . . . . . . . . . Escape Stasis 6 | . . . . . . . . . . . . . . . . . . . . . . . 5 . . . . . . . . 1 . . . Rewire 237 | . . . . . 15 . . . . . . . . 8 . . . . . . . . 105 . . . . 3 15 65 1 . . . 25 Trap . | . . . . . . . . . . . . . . . . . . . . . . . . . . . . . . . . . . . . Miscellaneous 1 | . . . . . . . . . . . . . . . . . 1 . . . . . . . . . . . . . . . . . . Route ------- -11/Scrapyard -10/Materials (discovered 6 exits: *Mat x3 / [*Min x2] / [*Sub]) -10/Mines -9/Materials (discovered 5 exits: *Mat x3 / *Min / [*Sto]) -9/Mines (discovered 3 exits: *Mat x2 / *Exi) -9/Exiles (discovered 2 exits: [*Min x2]) -8/Mines (discovered 2 exits: *Mat x2) -8/Materials (discovered 3 exits: *Fac x3) -7/Factory (discovered 2 exits: Low x2) -7/Waste -7/Factory -7/Lower Caves -7/Lower Caves -7/Data Miner -6/Proximity Caves -6/Factory (discovered 6 exits: *Fac x4 / *Low x2) -6/Waste -6/Factory (discovered 6 exits: *Fac x4 / *Low x2) -6/Lower Caves -6/Lower Caves (discovered 2 exits: *Fac / *Zio) -6/Zion -5/Proximity Caves -5/Factory (discovered 5 exits: Fac x2 / Upp / *Ext x2) -5/Extension (discovered 3 exits: *Fac x2 / *Cet) -5/Cetus (discovered 2 exits: *Fac / [*Arc]) -5/Archives (discovered 3 exits: *Fac / *Hub x2) -5/Hub_04(d) -4/Factory -4/Upper Caves -4/Upper Caves (discovered 2 exits: *Res / *War) -4/Warlord -3/Proximity Caves -3/Research (discovered 2 exits: Arm / *Qua) -3/Quarantine -2/Research (discovered 2 exits: *Acc / *Tes) -2/Testing History --------- Turn | Location | Event 2 | -11/Scrapyard | Met Revision 17 6 | -11/Scrapyard | Discovered new exit (range 16) 87 | -11/Scrapyard | Entered Materials 300 | -10/Materials | Build established: Mutant 476 | -10/Materials | Discovered new exit (range 11) 766 | -10/Materials | Discovered new exit (range 8) 978 | -10/Materials | Discovered new exit (range 16) 1425 | -10/Materials | Repaired Lgt. Treads 1453 | -10/Materials | Repaired Lgt. Treads 1558 | -10/Materials | Discovered new exit (range 10) 1571 | -10/Materials | Discovered new exit (range 7) 1634 | -10/Materials | Discovered new exit (range 10) 1699 | -10/Materials | Learned 2 Mines zone layouts 1759 | -10/Materials | Entered Mines 1760 | -10/Mines | Identified exit to Materials 1877 | -10/Mines | Assembled infested the area 1882 | -10/Mines | Assisted by a Guerilla fighting off Assembled 2269 | -10/Mines | Learned Materials security intel 2543 | -10/Mines | Entered Materials 2543 | -9/Materials | Evolved 2 slots: Propulsion x1, Weapon x1 2774 | -9/Materials | Discovered new exit (range 14) 2957 | -9/Materials | Central database locked down 2991 | -9/Materials | Build established: Gunner 3253 | -9/Materials | Discovered new exit (range 12) 3434 | -9/Materials | Destroyed 7 combat bots 3750 | -9/Materials | Discovered new exit (range 3) 3817 | -9/Materials | Learned 2 Storage zone layouts 3875 | -9/Materials | Identified exit to Materials 3875 | -9/Materials | Learned location of 1 exit from Materials 3921 | -9/Materials | Learned location of Zion (-6) 3955 | -9/Materials | Learned Storage trap positions 3978 | -9/Materials | Learned Storage stockpile data 3989 | -9/Materials | Identified exit to Mines 4011 | -9/Materials | Learned Storage trap positions 4043 | -9/Materials | Learned 4 Recycling zone layouts 4087 | -9/Materials | Learned location of 2 exits from Materials 5426 | -9/Materials | Repaired Imp. Medium Laser 5482 | -9/Materials | Repaired Imp. Medium Laser? 5725 | -9/Materials | Repaired Lgt. Treads 5932 | -9/Materials | Entered Mines 6068 | -9/Mines | Discovered exit to Materials (range 11) 6259 | -9/Mines | Discovered exit to Materials (range 9) 6437 | -9/Mines | Received a Rocket Launcher from a helpful Derelict 6962 | -9/Mines | Learned 2 Materials zone layouts 6971 | -9/Mines | Received a Mining Laser from a helpful Derelict 7048 | -9/Mines | Deemed a non-threat by the Exiles lab entrance 7050 | -9/Mines | Discovered new exit (range 5) 7056 | -9/Mines | Entered Exiles 7056 | -9/Exiles | Found Exiles lab destroyed 7056 | -9/Exiles | Accompanied by 1 ally 7077 | -9/Exiles | Discovered new exit (range 15) 7557 | -9/Exiles | Build established: Commander-Gunner 7643 | -9/Exiles | Opened EX-Vault 7960 | -9/Exiles | Discovered new exit (range 14) 7980 | -9/Exiles | Entered Mines 7980 | -8/Mines | Accompanied by 4 allies 8041 | -8/Mines | Discovered exit to Materials (range 3) 8128 | -8/Mines | Discovered exit to Materials (range 10) 8635 | -8/Mines | Build established: Gunner 8918 | -8/Mines | Entered Materials 8918 | -8/Materials | Accompanied by 3 allies 8918 | -8/Materials | Evolved 2 slots: Propulsion x1, Utility x1 8919 | -8/Materials | Identified exit to Factory 9314 | -8/Materials | Lost 3 allies 9467 | -8/Materials | Build established: Scavenger-Gunner 10267 | -8/Materials | Central database locked down 11686 | -8/Materials | Build established: Gunner 12351 | -8/Materials | Lost 4 parts (4n) 12619 | -8/Materials | Core integrity fell below 50% 12940 | -8/Materials | Build established: Scavenger-Mutant 14305 | -8/Materials | Entered Factory 14305 | -7/Factory | Evolved 2 slots: Propulsion x1, Utility x1 14329 | -7/Factory | Identified exit to Lower Caves 14627 | -7/Factory | Build established: Mutant 14713 | -7/Factory | Sucked down chute 14713 | -7/Factory | Entered Waste 14726 | -7/Waste | Spotted C-40 Crusher 14735 | -7/Waste | Destroyed C-40 Crusher 14748 | -7/Waste | Spotted C-40 Crusher 14761 | -7/Waste | Destroyed C-40 Crusher 14762 | -7/Waste | Spotted C-40 Crusher 14770 | -7/Waste | Spotted C-40 Crusher 14784 | -7/Waste | Warlord forces began an assault 14786 | -7/Waste | Spotted C-40 Crusher 14795 | -7/Waste | Allies destroyed C-40 Crusher 14797 | -7/Waste | Destroyed C-40 Crusher 14803 | -7/Waste | Allies destroyed C-40 Crusher 14828 | -7/Waste | Spotted C-40 Crusher 14835 | -7/Waste | Allies destroyed C-40 Crusher 15070 | -7/Waste | Discovered new exit (range 13) 15129 | -7/Waste | Build established: Scavenger-Gunner 15469 | -7/Waste | Entered Factory 15469 | -7/Factory | Accompanied by 14 allies 15522 | -7/Factory | Discovered exit to Lower Caves (range 7) 15650 | -7/Factory | Lost 3 allies 16620 | -7/Factory | Entered Lower Caves 16621 | -7/Lower Caves | Encountered a Warlord checkpoint 16913 | -7/Lower Caves | Attracted the attention of an 0b10 checkpoint 17098 | -7/Lower Caves | Learned 4 Factory zone layouts 17324 | -7/Lower Caves | Discovered new exit (range 14) 17405 | -7/Lower Caves | Learned Factory emergency access door positions 17447 | -7/Lower Caves | Entered another Lower Caves area 17942 | -7/Lower Caves | Spotted B-75 Beast 17994 | -7/Lower Caves | Learned location of 1 exit from Factory 18001 | -7/Lower Caves | Encountered a Warlord checkpoint 18294 | -7/Lower Caves | Discovered new exit (range 3) 19251 | -7/Lower Caves | Entered Data Miner 19263 | -7/Data Miner | Discovered new exit (range 8) 19298 | -7/Data Miner | Met Data Miner 19325 | -7/Data Miner | Acquired the access code to Warlord's prototype stash 19325 | -7/Data Miner | Learned location of Section 7 (-2) 19335 | -7/Data Miner | Received God Mode back door access code from Data Miner 19429 | -7/Data Miner | Destroyed Data Miner 19433 | -7/Data Miner | Data Conduit disabled 19567 | -7/Data Miner | Build established: Scavenger-Gladiator 19620 | -7/Data Miner | Found Prototype Device 19620 | -7/Data Miner | Identified Exp. Thermal Shield 19632 | -7/Data Miner | Lost 3 parts (1p1u1w) 19737 | -7/Data Miner | Found Exp. Thermal Shield 19893 | -7/Data Miner | Build established: Scavenger-Mutant 20023 | -7/Data Miner | Found Prototype Hackware 20025 | -7/Data Miner | Found Prototype Hackware 20094 | -7/Data Miner | Entered Proximity Caves 20178 | -6/Proximity Caves | Spotted B-75 Beast 20194 | -6/Proximity Caves | Build established: Scavenger-Gunner 20215 | -6/Proximity Caves | Destroyed B-75 Beast 20435 | -6/Proximity Caves | Attracted the attention of an 0b10 checkpoint 20539 | -6/Proximity Caves | Received a Behemoth hack from an annoying Tinkerer 20642 | -6/Proximity Caves | Learned Factory stockpile data 20700 | -6/Proximity Caves | Discovered new exit (range 9) 20890 | -6/Proximity Caves | Entered Factory 20890 | -6/Factory | Evolved 2 slots: Utility x2 20891 | -6/Factory | Identified exit to Factory 21022 | -6/Factory | Fabricated Combat Drone Bay? 21212 | -6/Factory | Build established: Scavenger-Tank 21439 | -6/Factory | Identified System Mapper 21441 | -6/Factory | Identified Deep Network Scanner 21519 | -6/Factory | Discovered new exit (range 3) 21525 | -6/Factory | Identified exit to Lower Caves 21587 | -6/Factory | Repaired Enh. Flexi-carbon Leg 21737 | -6/Factory | Build established: Scavenger-Gunner 22068 | -6/Factory | Build established: Hacker-Gunner 22093 | -6/Factory | Central database locked down 22430 | -6/Factory | Repaired Imp. Carbon-fiber Leg+ 22608 | -6/Factory | Build established: Scavenger-Gunner 22659 | -6/Factory | Repaired Neutron Cannon 23047 | -6/Factory | Found Launcher Loader 23146 | -6/Factory | Build established: Hacker-Gunner 23334 | -6/Factory | Sucked down chute 23334 | -6/Factory | Entered Waste 23335 | -6/Waste | Met a frightened Derelict 23349 | -6/Waste | EMP discharged 23362 | -6/Waste | Spotted C-40 Crusher 23366 | -6/Waste | Destroyed C-40 Crusher 23381 | -6/Waste | Spotted C-40 Crusher 23387 | -6/Waste | Spotted C-40 Crusher 23391 | -6/Waste | Destroyed C-40 Crusher 23391 | -6/Waste | Spotted C-40 Crusher 23394 | -6/Waste | Spotted C-40 Crusher 23413 | -6/Waste | Spotted C-40 Crusher 23413 | -6/Waste | Destroyed C-40 Crusher 23427 | -6/Waste | Destroyed C-40 Crusher 23443 | -6/Waste | Destroyed C-40 Crusher 23444 | -6/Waste | Destroyed C-40 Crusher 23449 | -6/Waste | EMP discharged 23449 | -6/Waste | System corruption reached 10% 23498 | -6/Waste | Discovered new exit (range 10) 23512 | -6/Waste | Entered Factory 23645 | -6/Factory | Discovered exit to Factory (range 11) 23691 | -6/Factory | Discovered exit to Lower Caves (range 13) 24418 | -6/Factory | Repaired Enh. Flexi-carbon Leg 24514 | -6/Factory | Repaired Neutron Cannon? 24637 | -6/Factory | Repaired Enh. Flexi-carbon Leg? 24719 | -6/Factory | Repaired Antimatter Reactor 24914 | -6/Factory | P-60 Hacker assimilated allied Administrator 5d 24967 | -6/Factory | Spotted B-75 Beast 24970 | -6/Factory | Destroyed B-75 Beast 25049 | -6/Factory | Central database locked down 25189 | -6/Factory | Fabricated Med. Armored Exoskeleton (x1) 25238 | -6/Factory | Fabricated Combat Drone Bay (x1) 25362 | -6/Factory | Entered Lower Caves 25362 | -6/Lower Caves | Accompanied by 3 allies 25461 | -6/Lower Caves | Build established: Scavenger-Gunner 25748 | -6/Lower Caves | Discovered new exit (range 7) 25851 | -6/Lower Caves | Entered another Lower Caves area 25851 | -6/Lower Caves | Accompanied by 3 allies 25905 | -6/Lower Caves | Discovered exit to Factory (range 19) 26256 | -6/Lower Caves | Entered an active Warlord outpost 26271 | -6/Lower Caves | A Commander dispatched an escort 26281 | -6/Lower Caves | Learned location of Extension (-5) 26281 | -6/Lower Caves | Learned 8 Factory zone layouts 26281 | -6/Lower Caves | Learned Factory security intel 26281 | -6/Lower Caves | Learned Extension security intel 26281 | -6/Lower Caves | Learned Extension terminal intel 26315 | -6/Lower Caves | Identified exit to Zion 26847 | -6/Lower Caves | Entered Zion 26847 | -6/Zion | Accompanied by 3 allies 26848 | -6/Zion | Commander's escort returned to base 26848 | -6/Zion | Commander's escort returned to base 26895 | -6/Zion | System corruption cleaned by Quarantine Array 26921 | -6/Zion | Received a hallucinogenic algorithm 26990 | -6/Zion | Found CR-A16's Pointy Stick 26996 | -6/Zion | Discovered new exit (range 9) 27204 | -6/Zion | Learned location of 1 exit from Proximity Caves 27213 | -6/Zion | Learned Factory trap positions 27247 | -6/Zion | Given A8's code to call for help 27296 | -6/Zion | Learned location of Quarantine (-3) 27873 | -6/Zion | Found GAL Module 27908 | -6/Zion | Met Imprinter 27927 | -6/Zion | Imprinted 27930 | -6/Zion | Declared Zion's savior 28047 | -6/Zion | Gained Derelict followers 28535 | -6/Zion | System corruption cleaned by Quarantine Array 28689 | -6/Zion | Ran a hallucination algorithm 28816 | -6/Zion | Entered Proximity Caves 28816 | -5/Proximity Caves | Accompanied by 10 allies 28873 | -5/Proximity Caves | Spotted B-75 Beast 28897 | -5/Proximity Caves | Allies destroyed B-75 Beast 29577 | -5/Proximity Caves | Learned 8 Factory zone layouts 29714 | -5/Proximity Caves | Attracted the attention of an 0b10 base 29736 | -5/Proximity Caves | Lost 6 allies 29846 | -5/Proximity Caves | Entered Factory 29846 | -5/Factory | Accompanied by 2 allies 29846 | -5/Factory | Evolved 2 slots: Propulsion x1, Utility x1 29847 | -5/Factory | Identified exit to Extension 29847 | -5/Factory | Identified exit to Factory 29847 | -5/Factory | Identified exit to Upper Caves 29848 | -5/Factory | Loaded intel: 73 trap records 30098 | -5/Factory | Fabricated Med. Armored Exoskeleton (x1) 30422 | -5/Factory | Retrieved Zion intel report: Trap Installations 30423 | -5/Factory | Zion Heavy squad teleported in 30492 | -5/Factory | Retrieved Zion intel report: Component Schematics 30493 | -5/Factory | Zion Offense Resupply teleported in 30643 | -5/Factory | Entered Extension 30643 | -5/Extension | Accompanied by 3 allies 30645 | -5/Extension | Loaded intel: 18 terminal locations 30672 | -5/Extension | Zion Heavy squad teleported in 30725 | -5/Extension | Energy Cycler disabled 30726 | -5/Extension | Rescued a captive Derelict 30726 | -5/Extension | Rescued a captive Derelict 30726 | -5/Extension | Rescued a captive Derelict 30726 | -5/Extension | Rescued a captive Derelict 30726 | -5/Extension | Rescued a captive Derelict 30727 | -5/Extension | Rescued a captive Derelict 30727 | -5/Extension | Rescued a captive Derelict 30727 | -5/Extension | Rescued a captive Derelict 30727 | -5/Extension | Rescued a captive Derelict 30727 | -5/Extension | Rescued a captive Derelict 30729 | -5/Extension | Rescued a captive Derelict 30730 | -5/Extension | Rescued a captive Derelict 30736 | -5/Extension | Rescued a captive Derelict 30742 | -5/Extension | Rescued a captive Derelict 31340 | -5/Extension | Build established: Commander-Tank 31641 | -5/Extension | Rescued A7 31726 | -5/Extension | Discovered exit to Factory (range 15) 31836 | -5/Extension | Zion Fire squad teleported in 31952 | -5/Extension | Zion Hacker squad teleported in 32154 | -5/Extension | Discovered exit to Factory (range 10) 32171 | -5/Extension | Discovered new exit (range 6) 32188 | -5/Extension | Terminal network hard line cut 32308 | -5/Extension | Entered Cetus 32308 | -5/Cetus | Accompanied by 32 allies (A7) 32313 | -5/Cetus | Acquired a Cetus Manufacturing Module code from A7 32322 | -5/Cetus | Spotted Cetus Guard 32323 | -5/Cetus | Allies destroyed Cetus Guard 32324 | -5/Cetus | Spotted Cetus Guard 32324 | -5/Cetus | Spotted Cetus Guard 32329 | -5/Cetus | Spotted Cetus Guard 32333 | -5/Cetus | Allies destroyed Cetus Guard 32340 | -5/Cetus | Allies destroyed Cetus Guard 32340 | -5/Cetus | Allies destroyed Cetus Guard 32361 | -5/Cetus | Lost 6 allies 32418 | -5/Cetus | Started Cetus Manufacturing Module 32435 | -5/Cetus | Discovered new exit (range 15) 32443 | -5/Cetus | Manufactured an Enhanced Grunt 32468 | -5/Cetus | Manufactured an Enhanced Grunt 32473 | -5/Cetus | Spotted Cetus Guard 32476 | -5/Cetus | Spotted Cetus Guard 32483 | -5/Cetus | Spotted Cetus Guard 32484 | -5/Cetus | Allies destroyed Cetus Guard 32485 | -5/Cetus | Spotted Cetus Guard 32493 | -5/Cetus | Manufactured an Enhanced Grunt 32494 | -5/Cetus | Allies destroyed Cetus Guard 32496 | -5/Cetus | Allies destroyed Cetus Guard 32499 | -5/Cetus | Allies destroyed Cetus Guard 32514 | -5/Cetus | Discovered exit to Factory (range 15) 32518 | -5/Cetus | Manufactured an Enhanced Grunt 32526 | -5/Cetus | Lost 3 allies 32527 | -5/Cetus | Scared off Revision 17 32543 | -5/Cetus | Manufactured an Enhanced Grunt 32700 | -5/Cetus | Murdered A7 32707 | -5/Cetus | Extracted ID and sensor layout for unrecognized location from A7's data core 32787 | -5/Cetus | Entered Archives 32787 | -5/Archives | Accompanied by 27 allies 32843 | -5/Archives | Lost 3 allies 32847 | -5/Archives | Discovered new exit (range 16) 32976 | -5/Archives | Discovered new exit (range 16) 33035 | -5/Archives | Discovered exit to Factory (range 13) 33396 | -5/Archives | Entered Hub_04(d) 33396 | -5/Hub_04(d) | Accompanied by 24 allies 33402 | -5/Hub_04(d) | Discovered exit to Factory (range 10) 33444 | -5/Hub_04(d) | Retrieved Zion intel report: Depthwide Sectors/-4 33462 | -5/Hub_04(d) | Retrieved Zion intel report: Trap Installations 33463 | -5/Hub_04(d) | Zion Infowar Resupply teleported in 33564 | -5/Hub_04(d) | Found Zio. Weapon Casing 33579 | -5/Hub_04(d) | Garrison activated, responded to threat 33620 | -5/Hub_04(d) | Found Zio. Weapon Casing 33636 | -5/Hub_04(d) | Lost 9 allies 33696 | -5/Hub_04(d) | First assault squad dispatched 33744 | -5/Hub_04(d) | Network Hub disabled 33798 | -5/Hub_04(d) | Entered Factory 33798 | -4/Factory | Accompanied by 3 allies 33798 | -4/Factory | Evolved 2 slots: Power x1, Utility x1 34008 | -4/Factory | Retrieved Zion intel report: Trap Installations 34009 | -4/Factory | Zion Heavy squad teleported in 34057 | -4/Factory | Build established: Messiah-Tank 34114 | -4/Factory | Retrieved Zion intel report: Component Stockpiles 34498 | -4/Factory | Retrieved Zion intel report: Depthwide Sectors/-4 34633 | -4/Factory | Fabricated Prc. Energy Filter (x1) 34683 | -4/Factory | Found Zio. Weapon Casing 34912 | -4/Factory | Discovered new exit (range 11) 34938 | -4/Factory | Identified exit to Upper Caves 34967 | -4/Factory | Zion hero teleported in (P1-3CE) 35021 | -4/Factory | Terminal network hard line cut 35224 | -4/Factory | Entered Upper Caves 35224 | -4/Upper Caves | Accompanied by 1 ally (P1-3CE) 35388 | -4/Upper Caves | Entered a destroyed Warlord outpost 35406 | -4/Upper Caves | Ambushed by wild Derelicts 35842 | -4/Upper Caves | Attracted the attention of an 0b10 outpost 36510 | -4/Upper Caves | Discovered new exit (range 14) 36555 | -4/Upper Caves | Identified exit to Upper Caves 36692 | -4/Upper Caves | Entered another Upper Caves area 36692 | -4/Upper Caves | Accompanied by 2 allies (P1-3CE) 36749 | -4/Upper Caves | Discovered new exit (range 16) 36765 | -4/Upper Caves | Identified exit to Research 36915 | -4/Upper Caves | Attracted the attention of an 0b10 outpost 37311 | -4/Upper Caves | Discovered new exit (range 19) 37332 | -4/Upper Caves | Identified exit to Warlord 37495 | -4/Upper Caves | Spotted B-86 Titan 37517 | -4/Upper Caves | Allies destroyed B-86 Titan 37786 | -4/Upper Caves | Entered Warlord 37786 | -4/Warlord | Accompanied by 3 allies (P1-3CE) 37828 | -4/Warlord | System corruption reached 10% 37834 | -4/Warlord | System corruption cleaned by Quarantine Array 38055 | -4/Warlord | Found Prototype Device 38055 | -4/Warlord | Identified Exp. Focal Shield 38062 | -4/Warlord | Found Prototype Processor 38062 | -4/Warlord | Identified Exp. Target Analyzer 38068 | -4/Warlord | Found Prototype Hackware 38081 | -4/Warlord | Found Prototype Reactor 38114 | -4/Warlord | Learned Armory security intel 38114 | -4/Warlord | Learned Armory repair station intel 38114 | -4/Warlord | Learned Research scanalyzer intel 38114 | -4/Warlord | Learned 4 Research zone layouts 38114 | -4/Warlord | Learned 4 Quarantine zone layouts 38114 | -4/Warlord | Learned 4 Command zone layouts 38114 | -4/Warlord | Learned Research trap positions 38114 | -4/Warlord | Learned Testing emergency access door positions 38309 | -4/Warlord | Visited the Vortex Lab 38316 | -4/Warlord | Warlord's base attacked by MAIN.C 38320 | -4/Warlord | Found Prototype Launcher 38557 | -4/Warlord | Identified Vortex Catalyst Activator 38587 | -4/Warlord | Lost 3 allies 38648 | -4/Warlord | Spotted Striker 38655 | -4/Warlord | Spotted Executioner 38657 | -4/Warlord | Allies destroyed Striker 38666 | -4/Warlord | Warlord forces counterattacked 38670 | -4/Warlord | Allies destroyed Executioner 38674 | -4/Warlord | Spotted Striker 38676 | -4/Warlord | Destroyed Striker 38679 | -4/Warlord | Lost 3 allies 38719 | -4/Warlord | Spotted B-90 Cyclops 38719 | -4/Warlord | Spotted Striker 38725 | -4/Warlord | Spotted B-86 Titan 38728 | -4/Warlord | Allies destroyed Striker 38779 | -4/Warlord | Lost 13 allies 38837 | -4/Warlord | Spotted Striker 38841 | -4/Warlord | P-70 Sage assimilated allied OQ-F8B(M) 38914 | -4/Warlord | Opened side exit 38924 | -4/Warlord | Spotted B-90 Cyclops 38946 | -4/Warlord | Discovered new exit (range 15) 38981 | -4/Warlord | Identified exit to Proximity Caves 38991 | -4/Warlord | Warlord base infiltrated, sounded retreat 38991 | -4/Warlord | Entered Proximity Caves 38991 | -3/Proximity Caves | Accompanied by 1 ally (P1-3CE) 39193 | -3/Proximity Caves | Spotted B-86 Titan 39236 | -3/Proximity Caves | Revealed the true nature of CR-A16's Pointy Stick 39239 | -3/Proximity Caves | Destroyed B-86 Titan 39515 | -3/Proximity Caves | Discovered exit to Research (range 7) 39595 | -3/Proximity Caves | Build established: Messiah-Skirmisher 39638 | -3/Proximity Caves | Entered Research 39638 | -3/Research | Evolved 2 slots: Utility x2 39639 | -3/Research | Identified exit to Armory 39639 | -3/Research | Identified exit to Quarantine 39641 | -3/Research | Loaded intel: 104 trap records 39642 | -3/Research | Loaded intel: 6 scanalyzer locations 39695 | -3/Research | Retrieved Zion intel report: Active Terminals 39696 | -3/Research | Zion Zionite Resupply teleported in 39713 | -3/Research | Found Zio. Weapon Casing 39716 | -3/Research | Found Prototype Protection 39716 | -3/Research | Identified Zio. Shade Carapace 40018 | -3/Research | Retrieved Zion intel report: Component Stockpiles 40019 | -3/Research | Zion Light squad teleported in 40098 | -3/Research | Found Zio. Weapon Casing 40258 | -3/Research | Spotted B-86 Titan 40369 | -3/Research | Found Unknown Launcher 40369 | -3/Research | Identified Fusion Bomb Launcher 40507 | -3/Research | Crushed by falling debris 40640 | -3/Research | Build established: Messiah-Tank 40670 | -3/Research | Zion Heavy squad teleported in 40743 | -3/Research | Found Zio. Weapon Casing 40791 | -3/Research | Zion Light squad teleported in 40842 | -3/Research | Found Zio. Weapon Casing 40897 | -3/Research | Zion Thermal Resupply teleported in 40928 | -3/Research | Found Zio. Weapon Casing 41213 | -3/Research | Terminal network hard line cut 41271 | -3/Research | Destroyed B-86 Titan 41557 | -3/Research | Found Zio. Weapon Casing 41642 | -3/Research | Entered Quarantine 41673 | -3/Quarantine | Retrieved Zion intel report: Guard Positions 41719 | -3/Quarantine | Retrieved Zion intel report: Prototype Schematics 41762 | -3/Quarantine | Found Alien Artifact 41762 | -3/Quarantine | Identified Phase Redirector 41828 | -3/Quarantine | Found Alien Artifact 41953 | -3/Quarantine | System corruption reached 10% 41998 | -3/Quarantine | Found Unknown Launcher 41998 | -3/Quarantine | Identified Gamma Bomb Array 42230 | -3/Quarantine | Identified Ghost Barrier 42230 | -3/Quarantine | Identified Hpw. Transdimensional Reconstructor 42448 | -3/Quarantine | Discovered new exit (range 7) 42766 | -3/Quarantine | Identified exit to Research 42767 | -3/Quarantine | Entered Research 42767 | -2/Research | Evolved 2 slots: Utility x1, Weapon x1 42915 | -2/Research | Spotted B-90 Cyclops 43155 | -2/Research | Identified Vortex Chain Reactor 43222 | -2/Research | Destroyed 8 combat bots 43223 | -2/Research | Lost 11 parts (1p3n7u) 43297 | -2/Research | Discovered new exit (range 11) 43330 | -2/Research | Identified exit to Access 43424 | -2/Research | Build established: Messiah-Skirmisher 43494 | -2/Research | Zion Heavy squad teleported in 43502 | -2/Research | Discovered new exit (range 19) 43522 | -2/Research | Zion Light squad teleported in 43530 | -2/Research | Identified exit to Testing 43553 | -2/Research | Zion Light squad teleported in 43583 | -2/Research | Spotted B-90 Cyclops 43610 | -2/Research | Destroyed B-90 Cyclops 43671 | -2/Research | Lost 5 allies 43679 | -2/Research | Found Zio. Weapon Casing 43763 | -2/Research | System corruption reached 10% 43767 | -2/Research | First assault squad dispatched 43807 | -2/Research | Zion Defense Resupply teleported in 43823 | -2/Research | P-80 Master assimilated allied WQ-CS1(A) 43841 | -2/Research | Warped through subspace 43859 | -2/Research | Zion Thermal Resupply teleported in 43878 | -2/Research | Lost 3 parts (1p2u) 43919 | -2/Research | Build established: Messiah-Tank 43947 | -2/Research | Entered Testing 43995 | -2/Testing | Found Prototype Launcher 43995 | -2/Testing | Identified Z-bomb Delivery System 44048 | -2/Testing | Rewired PY-TBFRGOKUCE 44130 | -2/Testing | Found Prototype Ballistic Cannon 44130 | -2/Testing | Identified Omega Cannon 44145 | -2/Testing | Spotted Superbehemoth 44149 | -2/Testing | Superbehemoth self-activated to run performance analysis 44197 | -2/Testing | First assault squad dispatched 44229 | -2/Testing | System corruption reached 30% 44233 | -2/Testing | Found Prototype Launcher 44233 | -2/Testing | Identified Point Singularity Launcher 44240 | -2/Testing | Spotted Striker 44241 | -2/Testing | Spotted Striker 44250 | -2/Testing | Spotted Alpha 7 44257 | -2/Testing | Released all parts (9) 44260 | -2/Testing | Core integrity fell below 50% 44279 | -2/Testing | Core integrity fell below 20% 44286 | -2/Testing | Lost 16 parts (2p5n5u4w) 44304 | -2/Testing | Destroyed by Striker with Plasma Lance Last Messages --------------- 44258_ Acquired GAL Module. 44259_ Slug penetrates Wall. 44259_ Critical hit (Impale). 44262_ Penetrated by Slug. 44262_ Slug penetrates Wall. 44271_ L,IMMFK4Y1G|O8=B T,H=XBWM0YTSHB0=K<#3 44285_ Dropped Corrupted Zio. Composite Leg II. 44285_ Acquired Prototype Flight Unit. 44286_ Slammed into Striker. 44286_ Striker knocked back. 44287_ Slammed into Striker. 44288_ System corrupted: Matter fused (-7). 44288_ Slammed into Striker. 44288_ Destabilizing: Core damaged (-72). 44301_ Slammed into Striker. 44301_ Striker knocked back. 44302_ Slammed into Striker. 44303_ Identified Imp. Diametric Drive. 44303_ Faulty integration triggers heat surge (+310). 44304_ Critical hit (Impale). Map ----- +----------------------------------------------------+ | ?######?# ##" ""### #?????????????????????? | | ????????# * ##" """#?# #?????????????????????? | | ????????" ### " ""#?# #????????????"????????? | | ???????"" ! "## " ""#?# #???????????"" ? ?????? | | ??????""" ""###"""### #??????????""" #????? | | ??????"S ] ""#?#####"" #????????? """ #????? | | ?????#"" T"#?????#T #???????? "" #????? | | ??????"" = ""#?????### ######## ###??? | | ??????### ###???????# | | ????????# #?????????#### ^ ####?????????? | | ????????##################?# #????????????? | | ????????????# #?# #????????????? | | ????????????# #?# #######????????????? | | ????????????# """"""" #?# #??????????????????? | | ????????????# """" """ #?# #??????????????????? | | ????????????# "" "" ###+#######?????????+??? | | ????????????# """ "" #= / +????????????? | | ????????????# # = ####????????????? | | ????????????# # """ #???????????????? | | ????????????# # """ #???????????????? | | ????????????# + """ #???????????????? | | ????????????# # #???????????????? | | ????????????# #####+##???????????????? | | ????????????#######+######???# #????????????????? | | ????????????????# #########+####?????????????? | | ????????????????# # K@ #?????????????? | | ??????????####### # """""" #?????????????? | | ??????????#"#"" + # """""" #?????????????? | | ??????????#] # # """""" #?????????????? | | ?????????## " # # K ] #?????????????? | | ?????????#" " # # """""" #?????????????? | | ?????????#" """ # # """""" #?????????????? | | ?????????#" """ # # """""" """#?????????????? | | ????????###"##### # """#?????????????? | | ????????# # ##??# # R"#?????????????? | | ??????####"""#### # * """#?????????????? | | ??????# # # #?????????????? | | ??????#""" """ # #####+########?????????????? | | ??????#"R """ # ?????????????? | | ??????#""" """ # ??????????????? | | ??????# """ # """"""" ????????????????? | | ??????# """ + """"""" ??????????????????? | | ??????# # """"""" #???????????????????? | | ??????# ! # #???????????????????? | | ??????#####+##### !!! #???????????????????? | | ??????#! * # !! #???????????????????? | | ??????# # !! #######?????????????? | | ??????# # +?????????????? | | ??????# """"""" + #???????????????????? | | ??????# """"""" # ###+####???????????????????? | +----------------------------------------------------+ Best States ------------- Heat Dissipation 87 Coolant Potential 100 Energy Generation 70 Energy Capacity 1450 Matter Stores 300 Matter Capacity 300 Sight Range 22 Robot Scan Range 16 Terrain Scan Density 10 Jamming Range 16 Cloak Strength 3 Power Amplification 30 Armor Coverage 825 Resistance: KI 30 Resistance: TH 20 Resistance: EX 20 Resistance: EM 20 Resistance: I 20 Resistance: S 20 Resistance: P 20 Weapon Shielding 100 Weapon Cycling 20 Melee Speed Boost 20 Evasion (%) 70 Targeting Accuracy 8 Target Analysis 10 Core Analysis 6 Recoil Reduction 6 Energy Filtering 50 Particle Charging 32 Offensive Hacking 45 Authchip Count 3 Item Schematics ----------------- Seismic Detector | -9/Materials | Scanalyzed Lgt. Treads | -9/Materials | Scanalyzed Core Analyzer | -8/Materials | Scanalyzed Hrd. Medium Armor Plating | -8/Materials | Scanalyzed Reactive Plating | -8/Materials | Scanalyzed Combat Drone Bay | -7/Data Miner | Free Lgt. Regenerative Plating | -7/Data Miner | Free Multireflex Exoskeleton | -7/Data Miner | Free Gravity Neutralizer | -7/Data Miner | Free Cld. Plasma Cannon | -7/Data Miner | Free Field Propulsion Drive | -7/Data Miner | Free Imp. Shock Absorption System | -7/Data Miner | Free Lrn. Proton Cannon | -7/Data Miner | Free Imp. Component Analysis Suite | -7/Data Miner | Free Prc. Energy Filter | -6/Factory | Hacked Med. Armored Exoskeleton | -6/Factory | Hacked Adv. Focal Shield | -6/Factory | Hacked Hyp. Coil Gun | -6/Zion | Archive Angular Momentum Engine | -6/Zion | Archive Power Amplifier | -6/Zion | Archive Imp. Dynamic Insulation System | -6/Zion | Archive Myomer Leg | -6/Zion | Archive Lgt. Fission Core | -6/Zion | Archive Imp. Plasma Cutter | -6/Zion | Archive Imp. Medium Treads | -6/Zion | Archive Drone Bay | -6/Zion | Archive Hvy. Treads | -6/Zion | Archive Imp. Core Shielding | -6/Zion | Archive Tesla Rifle | -6/Zion | Archive Imp. System Shield | -6/Zion | Archive Adv. Transmission Jammer | -6/Zion | Archive Imp. Thermal Shield | -5/Factory | Z-intel Lyr. Medium Armor Plating | -5/Factory | Z-intel Lrn. Tractor Beam | -5/Factory | Z-intel Salvage Targeting Computer | -5/Factory | Z-intel Weapon Cycler | -5/Factory | Z-intel Component Analysis Suite | -5/Factory | Z-intel Com. Wheel | -5/Factory | Z-intel Imp. Targeting Computer | -5/Factory | Z-intel Thermic Laser | -5/Factory | Z-intel Adv. Terrain Scan Processor | -5/Factory | Z-intel Hpw. Tractor Beam | -5/Factory | Z-intel Adv. Signal Interpreter | -5/Factory | Z-intel Adv. Plasma Rifle | -3/Quarantine | Z-intel Hvy. Proton Cannon | -3/Quarantine | Z-intel Exp. Thermal Defense Suite | -3/Quarantine | Z-intel Vibroblade | -3/Quarantine | Z-intel Exp. Target Analyzer | -3/Quarantine | Z-intel Thunder Hammer | -3/Quarantine | Z-intel Exp. Cooling System | -3/Quarantine | Z-intel Adv. Dynamic Insulation System | -3/Quarantine | Z-intel Prc. Phase Gun | -3/Quarantine | Z-intel Imp. Matter Neutralizer | -3/Quarantine | Z-intel Adv. Variable Charge Gun | -3/Quarantine | Z-intel Exp. Matter Compressor | -2/Testing | Archive Robot Schematics ------------------ B-48 Gladiator | -7/Data Miner | Free A-15 Conveyor | -7/Data Miner | Free M-22 Extractor | -7/Data Miner | Free D-53 Grenadier | -7/Data Miner | Free S-27 Virus | -7/Data Miner | Free E-15 Imp | -7/Data Miner | Free R-10 Processor | -6/Zion | Archive H-66 Slayer | -6/Zion | Archive H-88 Terminator | -6/Zion | Archive Fabricated ------------ Combat Drone Bay | x1 | -6/Factory | Authchip Med. Armored Exoskeleton | x1 | -6/Factory | Authchip Combat Drone Bay | x1 | -6/Factory Med. Armored Exoskeleton | x1 | -5/Factory | Authchip Prc. Energy Filter | x1 | -4/Factory | Authchip Repaired ---------- Lgt. Treads | 30% | -10/Materials Lgt. Treads | 30% | -10/Materials Imp. Medium Laser | 34% | -9/Materials Imp. Medium Laser | 63% | -9/Materials Lgt. Treads | 79% | -9/Materials Enh. Flexi-carbon Leg | 46% | -6/Factory Imp. Carbon-fiber Leg | 12% | -6/Factory Neutron Cannon | 47% | -6/Factory Enh. Flexi-carbon Leg | 26% | -6/Factory Neutron Cannon | 57% | -6/Factory Enh. Flexi-carbon Leg | 55% | -6/Factory Antimatter Reactor | 62% | -6/Factory Studied --------- Hvy. Assault Rifle | -9/Materials | Hacked Pulse Rifle | -8/Materials | Hacked Chainsword | -7/Factory | Hacked Imp. Carbon-fiber Leg | -7/Factory | Hacked Arm. Leg | -6/Factory | Hacked Gamma Bomb Array | -3/Quarantine | Hacked Biometal Leg | -3/Quarantine | Hacked Alien Tech Used ----------------- Phase Redirector High-powered Transdimensional Reconstructor Achievements -------------- None Challenges ------------ None Game ------ Seed WarpRiotInsulator Manual? 0 Play Time 07:41:34 Cumulative 456.3 hours Start 2025.12.03 @ 19:53:08 End 2025.12.05 @ 22:42:12 Sessions 51 Manual Loads 0 Difficulty Rogue Special Mode None Game No. 280 Rogue 280 Adventurer 0 Explorer 0 Win Type - Total 9 Types 6/0/2/0/0/0/0/1/0/0 Lore% 82 Gallery% 82 Achievement% 59 Wizard Run 0 Options --------- Layout 0 ASCII 0 Keyboard 0 Movement Numpad Keybinds 0 Fullscreen 1 Font 24/Smallcaps Map View 76x50 Zoom Use 0% Tactical HUD 1 Map Filters NONE Filters NONE Steam 1 RUN: a05811fc-b6c3-4779-a676-a72d51ce6411